{"text_format":"3","workbook":"xlsx","n_sheets":20,"sheets":["Index","General Info","Annx 1 - Comp. of BOD","Annx 1 - Comp. of Committees","Annx 1 - Meeting of BOD","Annx 1 - Meeting of Committees","Annx 1 - Affirmations","Annx 1 Cyber security incidence","TextBlock","Annx II - Website","Taxonomy","Annx II - Annual Affirmations","Annx II - Annual Aff. (contd)","Half yearly Affirmations","Additional Half Yearly Disc","Signatory Details","Investor Grievance Report","Acquisition of Shares or Voting","Imposition of Fine or Penalty","Ongoing TaxLitigations_Disputes"],"not_rendered":{"images":3,"macros":1,"defined_names":13},"read":"whole","date_system":"1900"}

{"sheet":"Index","index":0,"n_rows":64,"n_cols":10,"rows_kept":64,"merged":[[5,4,5,8],[6,5,6,8],[7,5,7,8],[8,5,8,8],[9,5,9,8],[10,5,10,8],[13,3,13,9],[14,3,14,9],[17,3,17,9],[18,3,18,9],[19,3,19,9],[20,3,20,9],[21,3,21,9],[22,3,22,9],[23,3,23,9],[26,3,26,9],[27,4,27,8],[28,4,28,8],[29,4,29,8],[30,4,30,8],[31,4,31,8],[32,4,32,8],[33,4,33,8],[34,4,34,8],[35,4,35,8],[36,4,36,8],[37,4,37,8],[38,4,38,8],[39,4,39,8],[40,4,40,8],[41,4,41,8],[42,4,42,8],[43,4,43,8],[46,3,46,9],[47,3,47,9],[48,3,48,9],[49,3,49,9],[50,3,50,9],[51,3,51,9],[52,3,52,9],[53,3,53,9],[56,3,56,9],[57,3,57,9],[58,3,58,9],[59,3,59,9],[60,3,60,9],[61,3,61,9],[62,3,62,9],[63,3,63,9]]}
[]
[]
[]
[]
[]
[{"$nulls":4},"                                      XBRL Excel Utility"]
[{"$nulls":4},"1.","Overview"]
[{"$nulls":4},"2.","Before you begin"]
[{"$nulls":4},"3.","Index"]
[{"$nulls":4},"4.","Steps for Filing Integrated Governance Report"]
[{"$nulls":4},"5.","Fill up the data in excel utility"]
[]
[]
[{"$nulls":3},"1. Overview"]
[{"$nulls":3},"The excel utility can be used for creating the XBRL/XML file for efiling of Integrated Governance Report."]
[]
[]
[{"$nulls":3}," 2.  Before you begin"]
[{"$nulls":3},"1. The version of Microsoft Excel in your system should be Microsoft Office Excel 2007 and above."]
[{"$nulls":3},"2. The system should have a file compression software to unzip excel utility file."]
[{"$nulls":3},"3. Make sure that you have downloaded the latest Excel Utility from BSE Website to your local system."]
[{"$nulls":3},"4. Make sure that you have downloaded the Chrome Browser to view report generated from Excel utility."]
[{"$nulls":3},"5. Please enable the Macros (if disabled) as per instructions given in manual, so that all the functionalities of  Excel Utility works fine. Please first go through Enable Macro - Manual attached with zip file."]
[{"$nulls":3},"6. Kindly use this file in local system instead of OneDrive/shared drive.\nBecause it may gives an error \"Run-time error '52' : Bad file name or number\" While clicking on textblock button if files saved on OneDrive/shared drive."]
[]
[]
[{"$nulls":3},"3. Index "]
[{"$nulls":3},1,"Details of general information about company",{"$nulls":4},"General Info"]
[{"$nulls":3},{"$f":"+D28+1","v":2},"Composition of BOD",{"$nulls":4},"Annexure I - Composition of BOD"]
[{"$nulls":3},{"$f":"+D29+1","v":3},"Composition of Committee",{"$nulls":4},"Annexure I - Composition of Committee"]
[{"$nulls":3},4,"Meeting of BOD",{"$nulls":4},"Annexure I - Meeting of BOD"]
[{"$nulls":3},5,"Meeting of Committees",{"$nulls":4},"Annexure I - Meeting of Committees"]
[{"$nulls":3},6,"Affirmation ",{"$nulls":4},"Annexure I - Affirmation"]
[{"$nulls":3},7,"Website",{"$nulls":4},"Annexure II - Website"]
[{"$nulls":3},8,"Annual Affirmation",{"$nulls":4},"Annexure II - Annual Affirmation"]
[{"$nulls":3},9,"Annual Affirmation Continue",{"$nulls":4},"Annexure II -Annual Affirmation Continue"]
[{"$nulls":3},10,"Annexure III Affirmations",{"$nulls":4},"Half yearly Affirmations"]
[{"$nulls":3},11,"Additional Half yearly Disclosure",{"$nulls":4},"Additional Half Yearly Disc"]
[{"$nulls":3},12,"Details of Cyber security incidence",{"$nulls":4},"Cyber security incidence"]
[{"$nulls":3},13,"Signatory Details",{"$nulls":4},"Signatory Details"]
[{"$nulls":3},14,"Investor Grievance Report",{"$nulls":4},"Investor Grievance Report"]
[{"$nulls":3},15,"Acquisition of Shares or Voting",{"$nulls":4},"Acquisition of Shares or Voting"]
[{"$nulls":3},16,"Imposition of Fine or Penalty",{"$nulls":4},"Imposition of Fine or Penalty"]
[{"$nulls":3},17,"Ongoing TaxLitigations_Disputes",{"$nulls":4},"Ongoing TaxLitigations_Disputes"]
[]
[]
[{"$nulls":3},"5. Steps for Filing Integrated Governance Report"]
[{"$nulls":3},"I.  Fill up the data: Navigate to each field of every section in the sheet to provide applicable data in correct format.  (Formats will get reflected while filling data.)\n   - Use paste special command to paste data from other sheet."]
[{"$nulls":3},"II. Validating Sheets:  Click on the ''Validate\" button to ensure that the sheet has been properly filled and also data has been furnished in proper format. If there are some errors on the sheet, excel utility will prompt you about the same."]
[{"$nulls":3},"III. Validate All Sheets:  Click on the ''Home\" button. And then click on \"Validate All Sheet\" button to ensure that all sheets has been properly filled and validated successfully. If there are some errors on the sheet, excel utility will prompt you about the same and stop validation at the same time. After correction, once again follow the same procedure to validate all sheets."]
[{"$nulls":3},"Excel Utility will not allow you to generate XBRL/XML until you rectify all errors."]
[{"$nulls":3},"IV. Generate XML :   Excel Utility will not allow you to generate XBRL/XML unless successful validation of all sheet is completed. Now click on 'Generate XML'' to generate XBRL/XML file. \n    - Save the XBRL/XML file in your desired folder in local system."]
[{"$nulls":3},"V. Generate Report :   Excel Utility will allow you to generate Report. Now click on 'Generate Report'' to generate html report.   \n     - Save the HTML Report file in your desired folder in local system.     \n     - To view HTML Report open \"Chrome Web Browser\" . \n     - To print report in PDF Format, Click on print button and save as PDF."]
[{"$nulls":3},"VI. Upload XML file to BSE Listing Center: For uploading the XBRL/XML file generated through  Utility, login to BSE Listing Center and upload generated xml file. On Upload screen provide the required information and browse to select XML file and submit the XML."]
[]
[]
[{"$nulls":3},"6. Fill up the data in excel utility"]
[{"$nulls":3},"1. Cells with red fonts indicate mandatory fields."]
[{"$nulls":3},"2. If mandatory field is left empty, then Utility will not allow you to proceed further for generating XML."]
[{"$nulls":3},"3. You are not allowed to enter data in the Grey Cells."]
[{"$nulls":3},"4. If fields are not applicable to your company then leave it blank. Do not insert Zero unless it is a mandatory field."]
[{"$nulls":3},"5. Data provided must be in correct format, otherwise Utility will not allow you to proceed further for generating XML."]
[{"$nulls":3},"6. Select data from \"Dropdown list\" wherever applicable."]
[{"$nulls":3},"7. Adding Notes:  Click on \"Add Notes\" button to add notes."]

{"sheet":"General Info","index":1,"n_rows":29,"n_cols":23,"rows_kept":29,"merged":[[4,4,4,6]]}
[{"$nulls":17},"Quarterly","Applicable","Top 100 listed entities","SME","Yes","Original"]
[{"$nulls":17},"Half Yearly","Not Applicable","Top 500 listed entities","Equity","No","Revision"]
[{"$nulls":17},"Yearly",null,"Top 1000 listed entities"]
[{"$nulls":19},"Top 2000 listed entities"]
[{"$nulls":4},"General information about company",{"$nulls":14},"Any other"]
[{"$nulls":4},"Scrip code","523842"]
[{"$nulls":4},"NSE Symbol","NA"]
[{"$nulls":4},"MSEI Symbol","NA"]
[{"$nulls":4},"ISIN","INE460DO1038"]
[{"$nulls":4},"Name of the entity","SUPER TANNERY LIMITED"]
[{"$nulls":4},"Date of start of financial year","01-04-2025"]
[{"$nulls":4},"Date of end of financial year","31-03-2026"]
[{"$nulls":4},"Reporting Quarter Type","Quarterly"]
[{"$nulls":4},"Date of Quarter Ending","30-06-2025","Enter the quarter ended date only"]
[{"$nulls":4},"Type of company","Equity"]
[{"$nulls":4},"Whether Annexure I (Part A) of the SEBI Circular dated December 31, 2024 related to Compliance Report on Corporate Governance is applicable to the entity?","Yes",null,{"$f":"IF($F$16=\"No\",\"<<< Notes mandatory, if Not Applicable\",\"\")","v":""},{"$nulls":3},"Notes for Whether Annexure I (Part A) of the SEBI Circular dated December 31, 2024 related to Compliance Report on Corporate Governance is applicable to the entity?"]
[{"$nulls":4},"Whether Annexure I (Part B) of the SEBI Circular dated December 31, 2024 related to Investor Grievance Redressal Report is Applicable to the entity?","Yes",null,{"$f":"IF($F$17=\"No\",\"<<< Notes mandatory, if Not Applicable\",\"\")","v":""},{"$nulls":3},"Notes for Whether Annexure I (Part B) of the SEBI Circular dated December 31, 2024 related to Investor Grievance Redressal Report is Applicable to the entity?"]
[{"$nulls":4},"Whether Annexure I (Part C) of the SEBI Circular dated December 31, 2024 related to Disclosure of Acquisition of Shares or Voting Rights in Unlisted Companies is Applicable to the entity?","Yes",null,{"$f":"IF($F$18=\"No\",\"<<< Notes mandatory, if Not Applicable\",\"\")","v":""},{"$nulls":3},"Notes for Whether Annexure I (Part C) of the SEBI Circular dated December 31, 2024 related to Disclosure of Acquisition of Shares or Voting Rights in Unlisted Companies is Applicable to the entity?"]
[{"$nulls":4},"Whether Annexure I (Part D) of the SEBI Circular dated December 31, 2024 related to Disclosure of Imposition of Fine or Penalty is Applicable to the entity?","Yes",null,{"$f":"IF($F$19=\"No\",\"<<< Notes mandatory, if Not Applicable\",\"\")","v":""},{"$nulls":3},"Notes for Whether Annexure I (Part D) of the SEBI Circular dated December 31, 2024 related to Disclosure of Imposition of Fine or Penalty is Applicable to the entity?"]
[{"$nulls":4},"Whether Annexure I (Part E) of the SEBI Circular dated December 31, 2024 related to Disclosure of Updates to Ongoing Tax Litigations or Disputes is Applicable to the entity?","Yes",null,{"$f":"IF($F$20=\"No\",\"<<< Notes mandatory, if Not Applicable\",\"\")","v":""},{"$nulls":3},"Notes for Whether Annexure I (Part E) of the SEBI Circular dated December 31, 2024 related to Disclosure of Updates to Ongoing Tax Litigations or Disputes is Applicable to the entity?"]
[{"$nulls":4},"Whether Annexure I (Part F) of the SEBI Circular dated December 31, 2024 related to Disclosure Of Loans / Guarantees / Comfort Letters / Securities Etc. is Applicable to the entity?",null,null,{"$f":"IF($F$21=\"No\",\"<<< Notes mandatory, if Not Applicable\",\"\")","v":""},{"$nulls":3},"Notes for Whether Annexure I (Part F) of the SEBI Circular dated December 31, 2024 related to Disclosure Of Loans / Guarantees / Comfort Letters / Securities Etc. is Applicable to the entity?"]
[{"$nulls":4},"Risk management committee","Not Applicable"]
[{"$nulls":4},"Market Capitalisation as per immediate previous Financial Year","Top 2000 listed entities"]
[{"$nulls":4},"Is SCORE ID Available ?","Yes"]
[{"$nulls":4},"SCORE Registration ID","S00638"]
[{"$nulls":4},"Reason For No SCORE ID",""]
[{"$nulls":4},"Type of Submission","Original"]
[{"$nulls":4},"Remarks (website dissemination)"]
[{"$nulls":4},"Remarks for Exchange (not for Website Dissemination)"]

{"sheet":"Annx 1 - Comp. of BOD","index":2,"n_rows":24,"n_cols":47,"rows_kept":24,"merged":[[3,4,3,30],[4,4,4,30],[5,4,5,30],[6,4,6,9],[7,4,7,9],[8,4,8,9],[9,4,9,9],[9,13,9,17]]}
[{"$nulls":8},11,{"$nulls":4},"Yes","No",null,null,"Active","Inactive",{"$nulls":18},"Mr","Yes",null,null,"Executive Director","Chairperson","CEO","Shareholder Director"]
[{"$nulls":5},"Title","Name of the director","Permanent account number of director","Director identification number of director","Position of director in board  - one","Position of director in board  - Two","Position of director in board  - Three","Date of Birth","Whether the director is disqualified?","Start Date of disqualification","End Date of disqualification","Details of disqualification","Current status","Whether special resolution passed?","Date of passing special resolution","Initial Date of appointment","Date of Re-appointment of director in the current term ","Date of cessation of director","Tenure of director (in months)","Number of directorship in listed entities including this listed entity","Number of Independent directorship in listed entities including this listed entity","Number of memberships in audit or stakeholder committees including this listed entity","Number of post of chairperson in audit or stakeholder committee held in listed entities including this listed entity","Reason for Cessation","Notes","Notes for not providing DIN",{"$nulls":6},"Mrs","No",null,null,"Non-Executive - Non Independent Director","Not Applicable","MD","Employee Director"]
[{"$nulls":30},{"$f":"IF(J12=$AP$1,CMC,IF(J12=$AP$3,SE,Blank))","v":0},{"$nulls":6},"Ms",{"$nulls":3},"Non-Executive - Independent Director","Chairperson related to Promoter","CEO-MD",null,null,"Yes"]
[{"$nulls":4},"Annexure I",{"$nulls":32},"Tenure Completion",{"$nulls":3},"Non-Executive - Nominee Director",{"$nulls":4},"No"]
[{"$nulls":4},"Annexure I to be submitted by listed entity on quarterly basis",{"$nulls":32},"Others",{"$nulls":3},"Executive - Nominee Director",{"$nulls":4},"NA"]
[{"$nulls":4},"I. Composition of Board of Directors",{"$nulls":36},"Alternate Director"]
[{"$nulls":4},"Disclosure of notes on composition of board of directors explanatory"]
[{"$nulls":4},"Whether the listed entity has a Regular Chairperson",{"$nulls":5},"Yes"]
[{"$nulls":4},"Is there any change in information of board of directors compare to previous quarter"]
[{"$nulls":4},"Whether Chairperson is related to MD or CEO",{"$nulls":5},"No",null,null,"Disqualification of Directors under section 164 of the Companies Act, 2013"]
[{"$nulls":4},"Sr","Title (Mr / Ms)","Name of the Director","PAN","DIN","Category 1 of directors","Category 2 of directors","Category 3 of directors"," Date of Birth","Whether the director is disqualified?","Start Date of disqualification","End Date of disqualification","Details of disqualification","Current status","Whether special resolution passed?\n[Refer Reg. 17(1A) of Listing Regulations]","Date of passing special resolution","Initial Date of appointment","Date of Re-appointment","Date of \ncessation","Tenure of director (in months)","No of Directorship in listed entities including this listed entity (Refer Regulation 17A of Listing Regulations)","No of Independent Directorship in listed entities including this listed entity [with reference to proviso to regulation 17A(1) & reg. 17A(2)]","Number of memberships in Audit/ Stakeholder Committee(s) including this listed entity (Refer Regulation 26(1) of Listing Regulations)","No of post of Chairperson in Audit/ Stakeholder Committee held in listed entities including this listed entity (Refer Regulation 26(1) of Listing  Regulations)","Reason for Cessation","Notes for not providing PAN","Notes for not providing DIN"]
[]
[]
[{"$nulls":4},1,"Mr","IFTIKHARUL AMIN","AALPA7184J","00037424","Executive Director","Not Applicable","CEO-MD","26-06-1958","No","","","","Active","NA","","30-09-2019","30-09-2022",null,{"v":36,"d":"36.00"},2,0,1,0]
[{"$nulls":4},2,"Mr","IQBAL AHSAN","AALPA7182Q","00037445","Executive Director","Not Applicable","MD","03-05-1960","No","","","","Active","NA",null,"30-09-2019","30-09-2022",null,{"v":36,"d":"36.00"},2,0,1,0]
[{"$nulls":4},3,"Mr","IMRAN SIDDIQUI","AUYPS1342M","00037552","Executive Director","Not Applicable","MD","20-10-1958","No","","","","Active","NA",null,"30-09-2019","30-09-2022",null,{"v":36,"d":"36.00"},1,0,0,0]
[{"$nulls":4},4,"Mr","MOHAMMAD IMRAN","AAGPI9669B","00037627","Executive Director","Not Applicable","MD","22-01-1967","No","","","","Active","NA",null,"30-09-2019","30-09-2022",null,{"v":36,"d":"36.00"},1,0,0,0]
[{"$nulls":4},5,"Mr","ARSHAD KHAN","AIVPK0115D","00037665","Executive Director","Not Applicable","MD","05-02-1964","No","","","","Active","NA",null,"30-09-2019","30-09-2022",null,{"v":36,"d":"36.00"},1,0,0,0]
[{"$nulls":4},6,"Mr","VEQARUL AMIN","AFNPA8215P","00037469","Non-Executive - Non Independent Director","Not Applicable",null,"02-01-1962","No","","","","Active","NA",null,"01-01-2019","30-09-2022",null,null,2,0,0,0]
[{"$nulls":4},7,"Mr","YOGENDRA SINGH KATIYAR","AMZPK1318C","07162738","Non-Executive - Non Independent Director","Not Applicable",null,"02-06-1977","No","","","","Active","NA",null,"01-01-2019","30-09-2022",null,null,1,0,0,0]
[{"$nulls":4},8,"Mr","ROHIT MOHAN","ABHPM4847M","09629829","Non-Executive - Independent Director","Not Applicable","Shareholder Director","04-08-1959","No","","","","Active","NA",null,"10-05-2023","30-09-2023",null,{"v":60,"d":"60.00"},1,1,1,1]
[{"$nulls":4},9,"Mr","AFTAB AHMAD","ADNPA9831F","08415223","Non-Executive - Independent Director","Not Applicable","Shareholder Director","04-07-1944","No","","","","Active","Yes","30-09-2024","30-09-2019","30-09-2024",null,{"v":60,"d":"60.00"},2,2,1,0]
[{"$nulls":4},10,"Mr","MOHD.IZHAR","AACPI7636J","02281224","Non-Executive - Independent Director","Not Applicable","Shareholder Director","05-02-1957","No","","","","Active","Yes","30-09-2024","13-08-2024","30-09-2024",null,{"v":60,"d":"60.00"},1,1,1,1]
[{"$nulls":4},11,"Mrs","KABITA RANI DHAR","ABJPD4344A","10722986","Non-Executive - Independent Director","Chairperson","Shareholder Director","31-01-1955","No","","","","Active","Yes","30-09-2024","13-08-2024","30-09-2024",null,{"v":60,"d":"60.00"},1,1,0,0]

{"sheet":"Annx 1 - Comp. of Committees","index":3,"n_rows":168,"n_cols":32,"rows_kept":168,"merged":[[5,4,5,9],[5,10,7,12],[6,4,6,9],[7,4,7,8],[8,4,8,8],[10,4,10,11],[11,4,11,8],[37,4,37,11],[38,4,38,8],[64,4,64,11],[65,4,65,8],[91,4,91,11],[92,4,92,8],[118,4,118,11],[119,4,119,8],[119,10,119,11],[146,4,146,10]]}
["Member",{"$nulls":4},"Yes","No",null,1,{"$nulls":10},"Audit Committee",{"$nulls":6},"Chairperson",{"$nulls":4},"Executive Director"]
[{"$nulls":5},"Name of committee","Name of committee members","Position of director in committee - one","Position of director in committee - two","Name of other committee",{"$nulls":9},"Nomination and remuneration committee",{"$nulls":6},"Member",{"$nulls":4},"Non-Executive - Non Independent Director"]
[{"$nulls":19},"Stakeholders Relationship Committee",{"$nulls":11},"Non-Executive - Independent Director"]
[{"$nulls":19},"Risk Management Committee",{"$nulls":11},"Non-Executive - Nominee Director"]
[{"$nulls":19},"Corporate Social Responsibility Committee",{"$nulls":11},"Executive - Nominee Director"]
[{"$nulls":4},"Annexure 1",{"$nulls":5},"For this quarter kindly note the following points:\n1. Date of Appointment and Date of Cessation (if applicable) must be mandatorily filled for every Committee.\n2. Date of Appointment can be any day upto September 30, 2022.\n3. Date of Cessation must be for the current quarter only, i.e. July 1,2022 to September 30,2022",{"$nulls":8},"Other Committee",{"$nulls":11},"Alternate Director"]
[{"$nulls":4},"II. Composition of Committees",{"$nulls":26},"Member"]
[{"$nulls":4},"Disclosure of notes on composition of committees explanatory",{"$nulls":14},"Yes","No"]
[{"$nulls":4},"Is there any change in information of committees compare to previous quarter",{"$nulls":4},"Yes"]
[{"$nulls":4},"Note: Please enter DIN. After entering DIN, Name of Committee members and Category 1 of Directors shall be prefilled automatically"]
[{"$nulls":4},"Audit Committee Details"]
[{"$nulls":4},"Whether the Audit Committee has a Regular Chairperson",{"$nulls":4},"Yes"]
[{"$nulls":4},"Sr","DIN Number","Name of Committee members","Category 1 of directors","Category 2 of directors","Date of Appointment ","Date of Cessation","Remarks"]
[{"$nulls":4},1,"09629829","ROHIT MOHAN","Non-Executive - Independent Director","Chairperson","30-09-2023"]
[{"$nulls":4},2,"08415223","AFTAB AHMAD","Non-Executive - Independent Director","Member","30-09-2019"]
[{"$nulls":4},3,"02281224","MOHD.IZHAR","Non-Executive - Independent Director","Member","13-08-2024"]
[{"$nulls":4},4]
[{"$nulls":4},5]
[{"$nulls":4},6]
[{"$nulls":4},7]
[{"$nulls":4},8]
[{"$nulls":4},9]
[{"$nulls":4},10]
[{"$nulls":4},11]
[{"$nulls":4},12]
[{"$nulls":4},13]
[{"$nulls":4},14]
[{"$nulls":4},15]
[{"$nulls":4},16]
[{"$nulls":4},17]
[{"$nulls":4},18]
[{"$nulls":4},19]
[{"$nulls":4},20]
[]
[]
[]
[{"$nulls":4},"Note: Please enter DIN. After entering DIN, Name of Committee members and Category 1 of Directors shall be prefilled automatically"]
[{"$nulls":4},"Nomination and remuneration committee"]
[{"$nulls":4},"Whether the Nomination and remuneration committee has a Regular Chairperson",{"$nulls":4},"Yes"]
[{"$nulls":4},"Sr","DIN Number","Name of Committee members","Category 1 of directors","Category 2 of directors","Date of Appointment ","Date of Cessation","Remarks"]
[{"$nulls":4},1,"08415223","AFTAB AHMAD","Non-Executive - Independent Director","Chairperson","30-09-2019"]
[{"$nulls":4},2,"09629829","ROHIT MOHAN","Non-Executive - Independent Director","Member","30-09-2023"]
[{"$nulls":4},3,"02281224","MOHD.IZHAR","Non-Executive - Independent Director","Member","13-08-2024"]
[{"$nulls":4},4]
[{"$nulls":4},5]
[{"$nulls":4},6]
[{"$nulls":4},7]
[{"$nulls":4},8]
[{"$nulls":4},9]
[{"$nulls":4},10]
[{"$nulls":4},11]
[{"$nulls":4},12]
[{"$nulls":4},13]
[{"$nulls":4},14]
[{"$nulls":4},15]
[{"$nulls":4},16]
[{"$nulls":4},17]
[{"$nulls":4},18]
[{"$nulls":4},19]
[{"$nulls":4},20]
[]
[]
[]
[{"$nulls":4},"Note: Please enter DIN. After entering DIN, Name of Committee members and Category 1 of Directors shall be prefilled automatically"]
[{"$nulls":4},"Stakeholders Relationship Committee"]
[{"$nulls":4},"Whether the Stakeholders Relationship Committee has a Regular Chairperson",{"$nulls":4},"Yes"]
[{"$nulls":4},"Sr","DIN Number","Name of Committee members","Category 1 of directors","Category 2 of directors","Date of Appointment ","Date of Cessation","Remarks"]
[{"$nulls":4},1,"02281224","MOHD.IZHAR","Non-Executive - Independent Director","Chairperson","13-08-2024"]
[{"$nulls":4},2,"00037424","IFTIKHARUL AMIN","Executive Director","Member","30-09-2022"]
[{"$nulls":4},3,"00037445","IQBAL AHSAN","Executive Director","Member","30-09-2022"]
[{"$nulls":4},4]
[{"$nulls":4},5]
[{"$nulls":4},6]
[{"$nulls":4},7]
[{"$nulls":4},8]
[{"$nulls":4},9]
[{"$nulls":4},10]
[{"$nulls":4},11]
[{"$nulls":4},12]
[{"$nulls":4},13]
[{"$nulls":4},14]
[{"$nulls":4},15]
[{"$nulls":4},16]
[{"$nulls":4},17]
[{"$nulls":4},18]
[{"$nulls":4},19]
[{"$nulls":4},20]
[]
[]
[]
[]
[{"$nulls":4},"Risk Management Committee"]
[{"$nulls":4},"Whether the Risk Management Committee has a Regular Chairperson"]
[{"$nulls":4},"Sr","DIN Number","Name of Committee members","Category 1 of directors","Category 2 of directors","Date of Appointment ","Date of Cessation","Remarks"]
[{"$nulls":4},1]
[{"$nulls":4},2]
[{"$nulls":4},3]
[{"$nulls":4},4]
[{"$nulls":4},5]
[{"$nulls":4},6]
[{"$nulls":4},7]
[{"$nulls":4},8]
[{"$nulls":4},9]
[{"$nulls":4},10]
[{"$nulls":4},11]
[{"$nulls":4},12]
[{"$nulls":4},13]
[{"$nulls":4},14]
[{"$nulls":4},15]
[{"$nulls":4},16]
[{"$nulls":4},17]
[{"$nulls":4},18]
[{"$nulls":4},19]
[{"$nulls":4},20]
[]
[]
[]
[{"$nulls":4},"Note: Please enter DIN. After entering DIN, Name of Committee members and Category 1 of Directors shall be prefilled automatically"]
[{"$nulls":4},"Corporate Social Responsibility Committee"]
[{"$nulls":4},"Whether the Corporate Social Responsibility Committee has a Regular Chairperson",{"$nulls":4},"Yes"]
[{"$nulls":4},"Sr","DIN Number","Name of Committee members","Category 1 of directors","Category 2 of directors","Date of Appointment ","Date of Cessation","Remarks"]
[{"$nulls":4},1,"09629829","ROHIT MOHAN","Non-Executive - Independent Director","Chairperson","30-09-2023"]
[{"$nulls":4},2,"00037627","MOHAMMAD IMRAN","Executive Director","Member","30-09-2022"]
[{"$nulls":4},3,"00037445","IQBAL AHSAN","Executive Director","Member","30-09-2022"]
[{"$nulls":4},4]
[{"$nulls":4},5]
[{"$nulls":4},6]
[{"$nulls":4},7]
[{"$nulls":4},8]
[{"$nulls":4},9]
[{"$nulls":4},10]
[{"$nulls":4},11]
[{"$nulls":4},12]
[{"$nulls":4},13]
[{"$nulls":4},14]
[{"$nulls":4},15]
[{"$nulls":4},16]
[{"$nulls":4},17]
[{"$nulls":4},18]
[{"$nulls":4},19]
[{"$nulls":4},20]
[]
[]
[]
[]
[]
[{"$nulls":4},"Other Committee"]
[{"$nulls":4},"Sr","DIN Number","Name of Committee members","Name of other committee","Category 1 of directors","Category 2 of directors","Remarks"]
[{"$nulls":4},1]
[{"$nulls":4},2]
[{"$nulls":4},3]
[{"$nulls":4},4]
[{"$nulls":4},5]
[{"$nulls":4},6]
[{"$nulls":4},7]
[{"$nulls":4},8]
[{"$nulls":4},9]
[{"$nulls":4},10]
[{"$nulls":4},11]
[{"$nulls":4},12]
[{"$nulls":4},13]
[{"$nulls":4},14]
[{"$nulls":4},15]
[{"$nulls":4},16]
[{"$nulls":4},17]
[{"$nulls":4},18]
[{"$nulls":4},19]
[{"$nulls":4},20]

{"sheet":"Annx 1 - Meeting of BOD","index":4,"n_rows":21,"n_cols":19,"rows_kept":21,"merged":[[6,4,6,12],[8,4,8,7],[11,4,11,12]]}
[{"$nulls":8},4]
[{"$nulls":5},"Dates of meeting in the previous quarter","Dates of meeting in the relevant quarter","Maximum gap between any two consecutive meetings","Disclosure of notes on meeting of Boards explanatory in absense of date","Whether requirement of Quorum met BOD","Total Number of Directors as on date of the meeting","Number of Directors present","No. of Independent Directors attending the meeting",{"$nulls":5},"Yes"]
[{"$nulls":18},"No"]
[]
[]
[]
[{"$nulls":4},"Annexure 1"]
[{"$nulls":4},"III.        Meeting of Board of Directors"]
[{"$nulls":4},"Disclosure of notes on meeting of board of directors explanatory"]
[{"$nulls":4},"Sr. No.","Date(s) of meeting (if any) in the previous quarter","Date(s) of meeting (Enter dates of Previous quarter and Current quarter in chronological order)","Maximum gap between any two consecutive (in number of days)","Notes for not providing Date","Whether requirement of Quorum met (Yes/No)","Total Number of Directors as on date of the meeting","Number of Directors present*\n(All directors including Independent Director)","No. of Independent Directors attending the meeting*"]
[]
[]
[{"$nulls":4},1,null,"14-01-2025",null,null,"Yes",11,5,3]
[{"$nulls":4},2,null,"30-01-2025",15,null,"Yes",11,5,3]
[{"$nulls":4},3,null,"13-02-2025",13,null,"Yes",11,7,4]
[{"$nulls":4},4,null,"29-05-2025",104,null,"Yes",11,7,4]
[]
[]
[]
[]
[{"$nulls":4},"* to be filled in only for the current quarter meetings"]

{"sheet":"Annx 1 - Meeting of Committees","index":5,"n_rows":23,"n_cols":20,"rows_kept":23,"merged":[[6,4,6,14],[7,4,7,14],[8,4,8,10],[11,7,11,14]]}
[{"$nulls":8},6,0,0,{"$nulls":7},"Yes","Audit Committee"]
[{"$nulls":4},"Dates of meeting of the committee in the previous quarter","Name of committee","Dates of meeting of the committee in the relevant quarter","Maximum gap between any two consecutive meetings","Name of other committee","Disclosure of notes on meeting of Committees explanatory in absense of date","Whether requirement of quorum met","Total Number of Directors in the Committee as on date of the meeting","Number of Directors Present (All Directors including Independent Director)","No. of Independent Directors attending the meeting in Committes","No. of members attending the meeting",{"$nulls":3},"No","Nomination and remuneration committee"]
[{"$nulls":19},"Stakeholders Relationship Committee"]
[{"$nulls":19},"Risk Management Committee"]
[{"$nulls":19},"Corporate Social Responsibility Committee"]
[{"$nulls":19},"Other Committee"]
[{"$nulls":4},"Annexure 1"]
[{"$nulls":4},"IV.        Meeting of Committees"]
[{"$nulls":4},"Disclosure of notes on meeting of committees explanatory "]
[{"$nulls":4},"Sr","Name of Committee","Date(s) of meeting (Enter dates of Previous quarter and Current quarter in chronological order)","Maximum gap between any two consecutive (in number of days)","Name of other committee","Reason for not providing date","Whether requirement of Quorum met (Yes/No)","Total Number of Directors in the Committee as on date of the meeting","Number of Directors Present (All Directors including Independent Director)","No. of Independent Directors attending the meeting*"," No. of members attending the meeting (other than Board of Directors)"]
[]
[]
[{"$nulls":4},1,"Audit Committee","13-02-2025",null,"",null,"Yes",3,3,3,2]
[{"$nulls":4},2,"Audit Committee","29-05-2025",104,"",null,"Yes",3,3,3,2]
[{"$nulls":4},3,"Nomination and remuneration committee","13-02-2025",null,"",null,"Yes",3,3,3,2]
[{"$nulls":4},4,"Nomination and remuneration committee","29-05-2025",104,"",null,"Yes",3,3,3,2]
[{"$nulls":4},5,"Stakeholders Relationship Committee","13-02-2025",null,"",null,"Yes",3,3,3,2]
[{"$nulls":4},6,"Stakeholders Relationship Committee","29-05-2025",104,"",null,"Yes",3,3,3,2]
[]
[]
[]
[]
[{"$nulls":4},"* to be filled in only for the current quarter meetings"]

{"sheet":"Annx 1 - Affirmations","index":6,"n_rows":28,"n_cols":18,"rows_kept":28,"merged":[[7,4,7,6],[8,4,8,6],[24,4,24,6]]}
["Micro@213Vista",{"$nulls":16},"Yes"]
[{"$nulls":17},"No"]
[{"$nulls":17},"NA"]
[]
[]
[]
[{"$nulls":9},"Chief Financial Officer","CEO","Company Secretary","Company Secretary and Compliance Officer","Compliance Officer","Director","Managing Director"]
[{"$nulls":4},"Annexure 1"]
[{"$nulls":4},"V.        Affirmations"]
[{"$nulls":4},"Sr","Subject","Compliance status (Yes/No)"]
[{"$nulls":4},1,"The composition of Board of Directors is in terms of SEBI (Listing obligations and disclosure requirements) Regulations, 2015","Yes",{"$nulls":10},"The composition of board of directors is in terms of SEBI Regulations, 2015"]
[{"$nulls":4},2,"The composition of the following committees is in terms of SEBI(Listing obligations and disclosure requirements) Regulations, 2015\na. Audit Committee","Yes",{"$nulls":10},"The composition of audit committee is in terms of SEBI Regulations, 2015"]
[{"$nulls":4},3,"The composition of the following committees is in terms of SEBI(Listing obligations and disclosure requirements) Regulations, 2015.                                                                                                                                                                                                                        b. Nomination & remuneration committee","Yes",{"$nulls":10},"The composition of the nomination and remuneration committee is in terms of SEBI Regulations, 2015"]
[{"$nulls":4},4,"The composition of the following committees is in terms of SEBI(Listing obligations and disclosure requirements) Regulations, 2015.                                                                                                                                                                                                                         c. Stakeholders relationship committee","Yes",{"$nulls":10},"The composition of the stakeholders relationship committee is in terms of SEBI Regulations, 2015"]
[{"$nulls":4},5,"The composition of the following committees is in terms of SEBI(Listing obligations and disclosure requirements) Regulations, 2015.                                                                                                                                                                                                                        d. Risk management committee (applicable to the top 1000 listed entities)","NA",{"$nulls":10},"The composition of the risk management committee is in terms of SEBI Regulations, 2015"]
[{"$nulls":4},6,"The committee members have been made aware of their powers, role and responsibilities as specified in SEBI (Listing obligations and disclosure requirements) Regulations, 2015.","Yes",{"$nulls":10},"The committee members have been made aware of their powers, role and responsibilities as specified in SEBI Regulations, 2015"]
[{"$nulls":4},7,"The meetings of the board of directors and the above committees have been conducted in the manner as specified in SEBI (Listing obligations and disclosure requirements) Regulations, 2015.","Yes",{"$nulls":10},"The meetings of the board of directors and the above committees have been conducted in the manner as specified in SEBI Regulations, 2015"]
[{"$nulls":4},8,"This report and/or the report submitted in the previous quarter has been placed before Board of Directors.","Yes",{"$nulls":10},"This report and/or the report submitted in the previous quarter has been placed before board of directors"]
[{"$nulls":4},9,"Any comments/observations/advice of Board of Directors may be mentioned here:",{"$nulls":3}," ",{"$nulls":7},"Any other information to be provided  "]
[]
[]
[]
[]
[]
[{"$nulls":4},"Annexure 1"]
[{"$nulls":4},"Sr","Subject","Compliance status"]
[{"$nulls":4},1,"Name of signatory","R.K.AWASTHI",{"$nulls":10},"Name of signatory for quartely affirmations"]
[{"$nulls":4},2,"Designation","Company Secretary and Compliance Officer",{"$nulls":10},"Designation of person for quartely affirmations"]

{"sheet":"Annx 1 Cyber security incidence","index":7,"n_rows":10,"n_cols":23,"rows_kept":10,"merged":[[5,4,5,6],[6,4,6,5],[7,4,7,5],[8,4,8,5]]}
[{"$nulls":8},0,{"$nulls":12},"Cyber security incident","Yes"]
[{"$nulls":4},"Whether as per Regulation 27(2)(ba) of SEBI (LODR) Regulations, 2015 there has been cyber security incidents or breaches or loss of data or documents during the quarter","Other details of cyber security incidence or breaches or loss of data event","Number of cyber security incidence or breaches or loss of data event occurred during the quarter",{"$nulls":14},"Cyber security breach","No"]
[{"$nulls":5},"Date of the event","Brief details of the event",{"$nulls":14},"Loss of data or documents"]
[]
[]
[{"$nulls":4},"Details of Cyber security incidence"]
[{"$nulls":4},"Whether as per Regulation 27(2)(ba) of SEBI (LODR) Regulations, 2015 there has been cyber security incidents or breaches or loss of data or documents during the quarter",null,"No"]
[{"$nulls":4},"Other details of cyber security incidence or breaches or loss of data event"]
[{"$nulls":4},"Number of cyber security incidence or breaches or loss of data event occurred during the quarter"]
[{"$nulls":4},"Sr.","Date of the event","Brief details of the event"]

{"sheet":"TextBlock","index":8,"n_rows":0,"n_cols":0,"rows_kept":0,"hidden":true}

{"sheet":"Annx II - Website","index":9,"n_rows":44,"n_cols":23,"rows_kept":44,"hidden":true,"merged":[[6,4,6,8],[7,4,7,8],[8,4,8,8],[43,6,43,7]]}
["Micro@213Vista",{"$nulls":16},"Yes"]
[{"$nulls":17},"No"]
[{"$nulls":17},"NA"]
[]
[]
[]
[{"$nulls":4},"Annexure II",{"$nulls":12},"Company Secretary","Compliance Officer","Managing Director","Director","CEO","Authorized Signatory"]
[{"$nulls":4},"Annexure II to be submitted by listed entity at the end of the financial year (for the whole of financial year)"]
[{"$nulls":4},"I.        Disclosure on website in terms of LODR Regulation"]
[{"$nulls":4},"Sr","Item","Compliance status (Yes/No/NA)","If status is “No” details of non-compliance may be given here.","Web address "]
[{"$nulls":5},"As per regulation 46(2) of the LODR:"]
[{"$nulls":4},1.1,"Details of business",{"$nulls":11},"Details of business","Details of non compliance of details of business","Disclosure web link of company at which details of business is placed"]
[{"$nulls":4},1.2,"Memorandum of Association and Articles of Association",{"$nulls":11},"Memorandum of Association and Articles of Association","Details of non compliance of Memorandum of Association and Articles of Association","Disclosure web link of Memorandum of Association and Articles of Association"]
[{"$nulls":4},1.3,"Brief profile of board of directors including directorship and full-time positions in body corporates",{"$nulls":11},"Brief profile of board of directors including directorship and full-time positions in body corporates","Details of non compliance of Brief profile of board of directors including directorship and full-time positions in body corporates","Disclosure web link of Brief profile of board of directors including directorship and full-time positions in body corporates"]
[{"$nulls":4},2,"Terms and conditions of appointment of independent directors",{"$nulls":11},"Terms and conditions of appointment of independent directors","Details of non compliance of terms and conditions of appointment of independent directors","Disclosure web link of company at which terms and conditions of appointment of independent directors is placed"]
[{"$nulls":4},3,"Composition of various committees of board of directors",{"$nulls":11},"Composition of various committees of board of directors","Details of non compliance of composition of various committees of board of directors","Disclosure web link of company at which composition of various committees of board of directors is placed"]
[{"$nulls":4},4,"Code of conduct of board of directors and senior management personnel",{"$nulls":11},"Code of conduct of board of directors and senior management personnel","Details of non compliance of code of conduct of board of directors and senior management personnel","Disclosure web link of company at which code of conduct of board of directors and senior management personnel is placed"]
[{"$nulls":4},5,"Details of establishment of vigil mechanism/ Whistle Blower policy",{"$nulls":11},"Details of establishment of vigil mechanism/ Whistle Blower policy","Details of non compliance of details of establishment of vigil mechanism or whistle blower policy","Disclosure web link of company at which details of establishment of vigil mechanism or whistle blower policy is placed"]
[{"$nulls":4},6,"Criteria of making payments to non-executive directors",{"$nulls":11},"Criteria of making payments to non-executive directors","Details of non compliance of criteria of making payments to non-executive directors","Disclosure web link of company at which details of criteria of making payments to non-executive directors is placed"]
[{"$nulls":4},7,"Policy on dealing with related party transactions",{"$nulls":11},"Policy on dealing with related party transactions","Details of non compliance of policy on dealing with related party transactions","Disclosure web link of company at which policy on dealing with related party transactions is placed"]
[{"$nulls":4},8,"Policy for determining ‘material’ subsidiaries",{"$nulls":11},"Policy for determining ‘material’ subsidiaries","Details of non compliance of policy for determining material subsidiaries","Disclosure web link of company at which policy for determining material subsidiaries is placed"]
[{"$nulls":4},9,"Details of familiarization programmes imparted to independent directors",{"$nulls":11},"Details of familiarization programmes imparted to independent directors","Details of non compliance of details of familiarization programmes imparted to independent directors","Disclosure web link of company at which details of familiarization programmes imparted to independent directors is placed"]
[{"$nulls":4},10,"Email address for grievance redressal and other relevant details",{"$nulls":11},"Email address for grievance redressal and other relevant details","Details of non compliance of email address for grievance redressal and other relevant details","Disclosure web link of company at which email address for grievance redressal and other relevant details is placed"]
[{"$nulls":4},11,"Contact information of the designated officials of the listed entity who are responsible for assisting and handling investor grievances",{"$nulls":11},"Contact information of the designated officials of the listed entity who are responsible for assisting and handling investor grievances","Details of non compliance of contact information of the designated officials of the listed entity who are responsible for assisting and handling investor grievances","Disclosure web link of company at which contact information of the designated officials of the listed entity who are responsible for assisting and handling investor grievances is placed"]
[{"$nulls":4},12,"Financial results",{"$nulls":11},"Financial results","Details of non compliance of financial results","Disclosure web link of company at which financial results is placed"]
[{"$nulls":4},13,"Shareholding pattern",{"$nulls":11},"Shareholding pattern","Details of non compliance of shareholding pattern","Disclosure web link of company at which shareholding pattern is placed"]
[{"$nulls":4},14,"Details of agreements entered into with the media companies and/or their associates",{"$nulls":11},"Details of agreements entered into with the media companies and/or their associates","Details of non compliance of details of agreements entered into with the media companies and/or their associates","Disclosure web link of company at which details of agreements entered into with the media companies and/or their associates is placed"]
[{"$nulls":4},15.1,"(I) Schedule of analyst or institutional investor meet\n(II) Presentations prepared by the listed entity for analysts or institutional investors meet, post earnings or quarterly calls prior to beginning of such events.",{"$nulls":11},"(I) Schedule of analyst or institutional investor meet\n(II) Presentations prepared by the listed entity for analysts or institutional investors meet, post earnings or quarterly calls prior to beginning of such events.","Details of non compliance of Schedule of analyst or institutional investor meet and presentations made by the listed entity to analysts or institutional investors simultaneously with submission to stock exchange","Disclosure web link of company at which details of Schedule of analyst or institutional investor meet and presentations made by the listed entity to analysts or institutional investors simultaneously with submission to stock exchange"]
[{"$nulls":4},15.2,"Audio recordings, video recordings, if any, and transcripts of post earnings or quarterly calls, by whatever name called, conducted physically or through digital means",{"$nulls":11},"Audio recordings, video recordings, if any, and transcripts of post earnings or quarterly calls, by whatever name called, conducted physically or through digital means","Details of non compliance of Audio or video recordings and transcripts of post earnings/quarterly calls","Disclosure web link of company at which details of Audio or video recordings and transcripts of post earnings/quarterly calls"]
[{"$nulls":4},16,"New name and the old name of the listed entity",{"$nulls":11},"New name and the old name of the listed entity","Details of non compliance of new name and the old name of the listed entity","Disclosure web link of company at details of non compliance of new name and the old name of the listed entity is placed"]
[{"$nulls":4},17,"Advertisements as per regulation 47 (1)",{"$nulls":11},"Advertisements as per regulation 47 (1)","Details of non compliance of Advertisements as per regulation","Disclosure web link of company at details of non compliance of Advertisements as per regulation 47 is placed"]
[{"$nulls":4},18,"Credit rating or revision in credit rating obtained",{"$nulls":11},"Credit rating or revision in credit rating obtained","Details of non compliance of Credit rating or revision in credit rating obtained","Disclosure web link of company at details of non compliance of Credit rating or revision in credit rating obtained"]
[{"$nulls":4},19,"Separate audited financial statements of each subsidiary of the listed entity in respect of a relevant financial year",{"$nulls":11},"Separate audited financial statements of each subsidiary of the listed entity in respect of a relevant financial year","Details of non compliance of Separate audited financial statements of each subsidiary of the listed entity in respect of a relevant financial year","Disclosure web link of company at details of non compliance of Separate audited financial statements of each subsidiary of the listed entity in respect of a relevant financial year is placed"]
[{"$nulls":4},20,"Secretarial Compliance Report",{"$nulls":11},"Secretarial Compliance Report","Details of non compliance of Secretarial Compliance Report","Disclosure web link of company at details of non compliance of Secretarial Compliance Report"]
[{"$nulls":4},21,"Materiality Policy as per Regulation 30 (4)",{"$nulls":11},"Materiality Policy as per Regulation 30 (4)","Details of non compliance of Materiality Policy as per Regulation 30 (4)","Disclosure web link of company at details of non compliance of Materiality Policy as per Regulation 30 (4)"]
[{"$nulls":4},22,"Disclosure of contact details of KMP who are authorized for the purpose of determining materiality as required under regulation 30(5)",{"$nulls":11},"Disclosure of contact details of KMP who are authorized for the purpose of determining materiality as required under regulation 30(5)","Details of non compliance of Disclosure of contact details of KMP who are authorized for the purpose of determining materiality as required under regulation 30(5)","Disclosure web link of company at details of non compliance of Disclosure of contact details of KMP who are authorized for the purpose of determining materiality as required under regulation 30(5)"]
[{"$nulls":4},23,"Disclosures under regulation 30(8)",{"$nulls":11},"Disclosures under regulation 30(8)","Details of non compliance of Disclosures under regulation 30(8)","Disclosure web link of company at details of non compliance of Disclosures under regulation 30(8)"]
[{"$nulls":4},24,"Statements of deviation(s) or variations(s) as specified in regulation 32",{"$nulls":11},"Statements of deviation(s) or variations(s) as specified in regulation 32","Details of non compliance of Statements of deviation(s) or variations(s) as specified in regulation 32","Disclosure web link of company at details of non compliance of Statements of deviation(s) or variations(s) as specified in regulation 32"]
[{"$nulls":4},25,"Dividend Distribution policy as per Regulation 43A(1)",{"$nulls":11},"Dividend Distribution policy as per Regulation 43A(1)","Details of non compliance of Dividend Distribution policy as per Regulation 43A(1)","Disclosure web link of company at details of non compliance of Dividend Distribution policy as per Regulation 43A(1)"]
[{"$nulls":4},26.1,"Annual return as provided under section 92 of the Companies Act, 2013",{"$nulls":11},"Annual return as provided under section 92 of the Companies Act, 2013","Details of non compliance of Annual return as provided under section 92 of the Companies Act, 2013","Disclosure web link of company at details of non compliance of Annual return as provided under section 92 of the Companies Act, 2013"]
[{"$nulls":4},26.2,"Employee Benefit scheme documents framed in terms of SEBI (SBEB) Regulations, 2021",{"$nulls":11},"Employee Benefit scheme documents framed in terms of SEBI (SBEB) Regulations, 2021","Details of non compliance of Employee Benefit scheme documents framed in terms of SEBI (SBEB) Regulations, 2021","Disclosure web link of Employee Benefit scheme documents framed in terms of SEBI (SBEB) Regulations, 2021"]
[{"$nulls":4},27,"Confirmation that the above disclosures are in a separate section as specified in regulation 46(2)",{"$nulls":11},"Confirmation that the above disclosures are in a separate section as specified in regulation 46(2)","Details of non compliance of Confirmation that the above disclosures are in a separate section as specified in regulation 46(2)","Disclosure web link of company at details of non compliance of Confirmation that the above disclosures are in a separate section as specified in regulation 46(2)"]
[{"$nulls":4},28,"Compliance with regulation 46(3) with respect to accuracy of disclosures on the website and timely updating",{"$nulls":11},"Compliance with regulation 46(3) with respect to accuracy of disclosures on the website and timely updating","Details of non compliance of Compliance with regulation 46(3) with respect to accuracy of disclosures on the website and timely updating","Disclosure web link of company at details of non compliance of Compliance with regulation 46(3) with respect to accuracy of disclosures on the website and timely updating"]
[{"$nulls":4},29,"Disclosure of notes on website in terms of Listing Regulations explanatory [Text Block]",{"$nulls":11},"Disclosure of notes on website in terms of Listing Regulations explanatory","Details of non compliance of Materiality Policy as per Regulation 30"]

{"sheet":"Taxonomy","index":10,"n_rows":454,"n_cols":5,"rows_kept":454,"hidden":true}
["Element","label","type","periodType","validation"]
["General Information"]
["ScripCode","Scrip code","in-capmkt-types:ScripCode","instant","1) This field is mandatory.\n2) Enter a valid Scrip code.\n3) Please enter 6 digit Scrip code."]
["Symbol","NSE Symbol","xbrli:stringItemType","instant","1) This field is mandatory.\n2) Space is not allowed.\n3) Maximum 10 characters allowed."]
["MSEISymbol","MSEI Symbol","xbrli:stringItemType","instant","1) This field is mandatory.\n2) Space is not allowed.\n3) Maximum 10 characters allowed."]
["ISIN","ISIN","in-capmkt-types:ISIN","instant","Please enter 12 digit ISIN number."]
["NameOfTheCompany","Name of the entity","xbrli:stringItemType","instant","This is a mandatory field. Please enter company name."]
["ReportingQuarter","Reporting Quarter Type","in-capmkt-types:ReportingQuarter","instant","1) This is a mandatory field.\n2) Please select value from the drop-down.\n3) There is a mis-match of Director’s designation in Composition of Board of Directors sheet and Composition of Committees sheet."]
["DateOfStartOfFinancialYear","Date of start of financial year","xbrli:dateItemType","instant","1) This field is mandatory.\n2) Enter date in \"DD-MM-YYYY\" format.\n3) Enter a valid Date."]
["DateOfEndOfFinancialYear","Date of end of financial year","xbrli:dateItemType","instant","1) This field is mandatory.\n2) Date must be greater than start date of financial year.\n3) Enter date in \"DD-MM-YYYY\" format.\n4) Enter a valid Date."]
["RiskManagementCommittee","Risk management committee","xbrli:booleanItemType","duration","This is a mandatory field. Value must be \"Applicable\" or \"Not applicable\". Select value from drop down list."]
["Annx 1 - Comp. of BOD"]
["IsThereAnyChangeInCompositionOfBoardOfDirectorsFromPreviousQuarter","Is there any change in information of board of directors compare to previous quarter","xbrli:booleanItemType","instant","This is mandatory field  or if \"Yes\" is selected in this field, then please enter composition of board of director."]
["DisclosureOfNotesOnCompositionOfBoardOfDirectorsExplanatoryTextBlock","Disclosure of notes on composition of board of directors explanatory","nonnum:textBlockItemType","duration","Notes is mandatory, if composition of board of director is not present."]
["Title","Title","in-capmkt-types:TypeOfPrefix","duration","This is a mandatory field. Please select value from the drop-down."]
["NameOftheDirector","Name of the director","xbrli:stringItemType","duration"]
["PermanentAccountNumberOfDirector","Permanent account number of director","in-capmkt-types:PermanentAccountNumber","duration","This is a mandatory field. Should be valid PAN as per Income_tax_PAN  format."]
["DirectorIdentificationNumberOfDirector","Director identification number of director","in-capmkt-types:DINNumber","duration","This is a mandatory field. Should be 8 digit number only."]
["PositionOfDirectorInBoardOne","Position of director in board  - one","in-capmkt-types:PositionOfDirector","duration","This is a mandatory field. Please select value from the drop-down."]
["PositionOfDirectorInBoardTwo","Position of director in board  - Two","in-capmkt-types:PositionOfDirector","duration","This is a mandatory field. Please select value from the drop-down. It allowes only one Chairperson or Chairperson related to Promoter."]
["PositionOfDirectorInBoardThree","Position of director in board  - Three","in-capmkt-types:PositionOfDirector","duration","Please select value from the drop-down."]
["DateOfCessationOfDirector","Date of cessation of director","xbrli:dateItemType","instant","Please enter date in \"dd-mm-yyyy\" format or date must between current quarter."]
["TenureOfDirector","Tenure of director (in months)","xbrli:decimalItemType","instant","This is mandatory field. Please enter number which is greater than 0(Zero)."]
["NumberOfDirectorshipInListedEntitiesIncludingThisListedEntity","Number of directorship in listed entities including this listed entity","xbrli:decimalItemType","instant","This is mandatory field. Please enter number which is greater than 0(Zero)."]
["NumberOfMembershipsInAuditOrStakeholderCommitteesIncludingThisListedEntity","Number of memberships in audit or stakeholder committees including this listed entity","xbrli:decimalItemType","instant","This is a mandatory field. Please enter number only."]
["NumberOfPostOfChairpersonInAuditOrStakeholderCommitteeHeldInListedEntitiesIncludingThisListedEntity","Number of post of chairperson in audit or stakeholder committee held in listed entities including this listed entity","xbrli:decimalItemType","instant","This is a mandatory field. Please enter number only."]
["DisclosureOfNotesInAbsenceOfPANTextBlock","Notes","nonnum:textBlockItemType","duration"]
["DisclosureOfNotesInAbsenceOfDINTextBlock","Notes for not providing DIN","nonnum:textBlockItemType","duration"]
["Annx 1 - Comp. of Committees"]
["IsThereAnyChangeInCompositionOfCommitteesFromPreviousQuarter","Is there any change in information of committees compare to previous quarter","xbrli:booleanItemType","instant","This is mandatory field or If \"Yes\" is selected in this field, then please enter composition of committees."]
["DisclosureOfNotesOnCompositionOfCommitteesExplanatoryTextBlock","Disclosure of notes on composition of committees explanatory","nonnum:textBlockItemType","duration","Notes is mandatory, if \"Audit Committee\", \"Nomination and remuneration committee\" and \"Stakeholders Relationship Committee\" is not present."]
["NameOfCommittee","Name of Committee","xbrli:stringItemType","duration","This field is not required if there are no change in information of committees compare to previous quarter."]
["DirectorIdentificationNumberOfDirector","DIN Number","in-capmkt-types:DINNumber","duration","1) This is a mandatory field.\n2) Please enter valid DIN Number."]
["NameOfCommitteeMembers","Name of Committee members","xbrli:stringItemType","duration"]
["PositionOfDirectorInCommitteeOne","Category 1 of directors","xbrli:stringItemType","duration"]
["PositionOfDirectorInCommitteeTwo","Category 2 of directors","in-capmkt-types:PositionOfDirector","duration","1) This is a mandatory field. Please select value from the drop-down or same committee have max of 4 chairperson. This field is not required if there are no change in information of committees compare to previous quarter.\n2) Please select minimum one chairperson."]
["NameOfOtherCommittee","Name of other committee","xbrli:stringItemType","duration","This is a mandatory field for Other committee. Please enter name of other committee members. This field is not required if there are no change in information of committees compare to previous quarter."]
["DisclosureOfNotesOnCommitteeTextBlock","Remarks","nonnum:textBlockItemType","duration"]
["Annx 1 - Meeting of BOD"]
["DatesOfMeetingInThePreviousQuarter","Dates of meeting in the previous quarter","xbrli:dateItemType","instant","This is mandatory field. Please enter date in \"dd-mm-yyyy\" format. It allows only previous six months date from  \"Date of Quarter Ending\" date in General Information sheet. This all dates must be in Ascending order."]
["DatesOfMeetingIfAnyInTheRelevantQuarter","Dates of meeting in the relevant quarter","xbrli:dateItemType","instant","This is mandatory field. Please enter date in \"dd-mm-yyyy\" format. It allows only previous six months date from  \"Date of Quarter Ending\" date in General Information sheet. This all dates must be in Ascending order."]
["MaximumGapBetweenAnyTwoConsecutiveMeetings","Maximum gap between any two consecutive meetings","xbrli:decimalItemType","instant","This is mandatory field. Please enter relevant date difference in form of number of days."]
["DisclosureOfNotesOnMeetingOfBoardOfDirectorsExplanatoryTextBlock","Disclosure of notes on meeting of board of directors explanatory","nonnum:textBlockItemType","duration"]
["Annx 1 - Meeting of Committees"]
["NameOfCommittee","Name of committee","xbrli:stringItemType","duration","This is a mandatory field. Please select value from the drop-down."]
["DatesOfMeetingOfTheCommitteeInTheRelevantQuarter","Dates of meeting of the committee in the relevant quarter","xbrli:dateItemType","instant","Please enter only relevant quarter date in \"dd-mm-yyyy\" format. If \"Whether requirement of quorum met\" is Yes then either Relevant Quarter or Previous Quarter date is required."]
["WhetherRequirementOfQuorumMet","Whether requirement of quorum met","xbrli:booleanItemType","duration","This is a mandatory field. Value must be \"Yes\" or \"No\". Select value from drop down list."]
["DetailsOfRequirementOfQuorumMet","Details of requirement of quorum met","xbrli:stringItemType","duration","Please enter requirement of quorum met which allows number value only."]
["DatesOfMeetingOfTheCommitteeInThePreviousQuarter","Dates of meeting of the committee in the previous quarter","xbrli:dateItemType","instant","Please enter only previous quarter date in \"dd-mm-yyyy\" format. If \"Whether requirement of quorum met\" is Yes then either Relevant Quarter or Previous Quarter date is required."]
["MaximumGapBetweenAnyTwoConsecutiveMeetings","Maximum gap between any two consecutive meetings","xbrli:decimalItemType","instant","This is mandatory field. Please enter relevant date difference in form of number of days."]
["NameOfOtherCommittee","Name of other committee","xbrli:stringItemType","duration","This is a mandatory field. Please enter name of other committee members."]
["DisclosureOfNotesOnMeetingOfCommitteesExplanatoryTextBlock","Disclosure of notes on meeting of committees explanatory","nonnum:textBlockItemType","duration"]
["Annx 1 - Affirmations"]
["TheCompositionOfBoardOfDirectorsIsInTermsOfSebiRegulations2015","The composition of board of directors is in terms of SEBI Regulations, 2015","xbrli:booleanItemType","duration","1) This field is mandatory.\n2) Please select from drop down only."]
["TheCompositionOfAuditCommitteeIsInTermsOfSebiRegulations2015","The composition of audit committee is in terms of SEBI Regulations, 2015","xbrli:booleanItemType","duration","1) This field is mandatory.\n2) Please select from drop down only."]
["TheCompositionOfTheNominationAndRemunerationCommitteeIsInTermsOfSebiRegulations2015","The composition of the nomination and remuneration committee is in terms of SEBI Regulations, 2015","xbrli:booleanItemType","duration","1) This field is mandatory.\n2) Please select from drop down only."]
["TheCompositionOfTheStakeholdersRelationshipCommitteeCommitteeIsInTermsOfSebiRegulations2015","The composition of the stakeholders relationship committee is in terms of SEBI Regulations, 2015","xbrli:booleanItemType","duration","1) This field is mandatory.\n2) Please select from drop down only."]
["TheCompositionOfTheRiskManagementCommitteeIsInTermsOfSebiRegulations2015","The composition of the risk management committee is in terms of SEBI Regulations, 2015","in-capmkt-types:StatusOfCompliance","duration","1) This field is mandatory.\n2) Please select from drop down only."]
["TheCommitteeMembersHaveBeenMadeAwareOfTheirPowersRoleAndResponsibilitiesAsSpecifiedInSebiRegulations2015","The committee members have been made aware of their powers, role and responsibilities as specified in SEBI Regulations, 2015","xbrli:booleanItemType","duration","1) This field is mandatory.\n2) Please select from drop down only."]
["TheMeetingsOfTheBoardOfDirectorsAndTheAboveCommitteesHaveBeenConductedInTheMannerAsSpecifiedInSebiRegulations2015","The meetings of the board of directors and the above committees have been conducted in the manner as specified in SEBI Regulations, 2015","xbrli:booleanItemType","duration","1) This field is mandatory.\n2) Please select from drop down only."]
["ThisReportAndOrTheReportSubmittedInThePreviousQuarterHasBeenPlacedBeforeBoardOfDirectors","This report and/or the report submitted in the previous quarter has been placed before board of directors","xbrli:stringItemType","duration","1) This field is mandatory.\n2) Please select from drop down only."]
["DisclosureOfNotesToAnnexure1ExplanatoryTextBlock","Any other information to be provided  ","nonnum:textBlockItemType","duration"]
["NameOfSignatoryForQuartelyAffirmations","Name of signatory for quartely affirmations","xbrli:stringItemType","duration"]
["DesignationOfPersonForQuartelyAffirmations","Designation of person for quartely affirmations","in-capmkt-types:Designation","duration","1) This field is mandatory.\n2) Please select from drop down only."]
["Annx II - Website"]
["DetailsOfBusiness","Details of business","in-capmkt-types:StatusOfCompliance","duration","1) This field is mandatory.\n2) Please select from drop down only."]
["DetailsOfNonComplianceOfDetailsOfBusiness","Details of non compliance of details of business","xbrli:stringItemType","duration","This field is mandatory, If \"No\" selected in \"Compliance status\" field (Column \"G\")."]
["DisclosureWebLinkOfCompanyAtWhichDetailsOfBusinessIsPlaced","Disclosure web link of company at which details of business is placed","xbrli:stringItemType","duration","This field is mandatory, If \"Yes\" selected in \"Compliance status\" field (Column \"G\")."]
["TermsAndConditionsOfAppointmentOfIndependentDirectors","Terms and conditions of appointment of independent directors","in-capmkt-types:StatusOfCompliance","duration","1) This field is mandatory.\n2) Please select from drop down only."]
["DetailsOfNonComplianceOfTermsAndConditionsOfAppointmentOfIndependentDirectors","Details of non compliance of terms and conditions of appointment of independent directors","xbrli:stringItemType","duration","This field is mandatory, If \"No\" selected in \"Compliance status\" field (Column \"G\")."]
["DisclosureWebLinkOfCompanyAtWhichTermsAndConditionsOfAppointmentOfIndependentDirectorsIsPlaced","Disclosure web link of company at which terms and conditions of appointment of independent directors is placed","xbrli:stringItemType","duration","This field is mandatory, If \"Yes\" selected in \"Compliance status\" field (Column \"G\")."]
["CompositionOfVariousCommitteesOfBoardOfDirectors","Composition of various committees of board of directors","in-capmkt-types:StatusOfCompliance","duration","1) This field is mandatory.\n2) Please select from drop down only."]
["DetailsOfNonComplianceOfCompositionOfVariousCommitteesOfBoardOfDirectors","Details of non compliance of composition of various committees of board of directors","xbrli:stringItemType","duration","This field is mandatory, If \"No\" selected in \"Compliance status\" field (Column \"G\")."]
["DisclosureWebLinkOfCompanyAtWhichCompositionOfVariousCommitteesOfBoardOfDirectorsIsPlaced","Disclosure web link of company at which composition of various committees of board of directors is placed","xbrli:stringItemType","duration","This field is mandatory, If \"Yes\" selected in \"Compliance status\" field (Column \"G\")."]
["CodeOfConductOfBoardOfDirectorsAndSeniorManagementPersonnel","Code of conduct of board of directors and senior management personnel","in-capmkt-types:StatusOfCompliance","duration","1) This field is mandatory.\n2) Please select from drop down only."]
["DetailsOfNonComplianceOfCodeOfConductOfBoardOfDirectorsAndSeniorManagementPersonnel","Details of non compliance of code of conduct of board of directors and senior management personnel","xbrli:stringItemType","duration","This field is mandatory, If \"No\" selected in \"Compliance status\" field (Column \"G\")."]
["DisclosureWebLinkOfCompanyAtWhichCodeOfConductOfBoardOfDirectorsAndSeniorManagementPersonnelIsPlaced","Disclosure web link of company at which code of conduct of board of directors and senior management personnel is placed","xbrli:stringItemType","duration","This field is mandatory, If \"Yes\" selected in \"Compliance status\" field (Column \"G\")."]
["DetailsOfEstablishmentOfVigilMechanismOrWhistleBlowerPolicy","Details of establishment of vigil mechanism/ Whistle Blower policy","in-capmkt-types:StatusOfCompliance","duration","1) This field is mandatory.\n2) Please select from drop down only."]
["DetailsOfNonComplianceOfDetailsOfEstablishmentOfVigilMechanismOrWhistleBlowerPolicy","Details of non compliance of details of establishment of vigil mechanism or whistle blower policy","xbrli:stringItemType","duration","This field is mandatory, If \"No\" selected in \"Compliance status\" field (Column \"G\")."]
["DisclosureWebLinkOfCompanyAtWhichDetailsOfEstablishmentOfVigilMechanismOrWhistleBlowerPolicyIsPlaced","Disclosure web link of company at which details of establishment of vigil mechanism or whistle blower policy is placed","xbrli:stringItemType","duration","This field is mandatory, If \"Yes\" selected in \"Compliance status\" field (Column \"G\")."]
["CriteriaOfMakingPaymentsToNonExecutiveDirectors","Criteria of making payments to non-executive directors","in-capmkt-types:StatusOfCompliance","duration","1) This field is mandatory.\n2) Please select from drop down only."]
["DetailsOfNonComplianceOfCriteriaOfMakingPaymentsToNonExecutiveDirectors","Details of non compliance of criteria of making payments to non-executive directors","xbrli:stringItemType","duration","This field is mandatory, If \"No\" selected in \"Compliance status\" field (Column \"G\")."]
["DisclosureWebLinkOfCompanyAtWhichDetailsOfCriteriaOfMakingPaymentsToNonExecutiveDirectorsIsPlaced","Disclosure web link of company at which details of criteria of making payments to non-executive directors is placed","xbrli:stringItemType","duration","This field is mandatory, If \"Yes\" selected in \"Compliance status\" field (Column \"G\")."]
["PolicyOnDealingWithRelatedPartyTransactions","Policy on dealing with related party transactions","in-capmkt-types:StatusOfCompliance","duration","1) This field is mandatory.\n2) Please select from drop down only."]
["DetailsOfNonComplianceOfPolicyOnDealingWithRelatedPartyTransactions","Details of non compliance of policy on dealing with related party transactions","xbrli:stringItemType","duration","This field is mandatory, If \"No\" selected in \"Compliance status\" field (Column \"G\")."]
["DisclosureWebLinkOfCompanyAtWhichPolicyOnDealingWithRelatedPartyTransactionsIsPlaced","Disclosure web link of company at which policy on dealing with related party transactions is placed","xbrli:stringItemType","duration","This field is mandatory, If \"Yes\" selected in \"Compliance status\" field (Column \"G\")."]
["PolicyForDeterminingMaterialSubsidiaries","Policy for determining ‘material’ subsidiaries","in-capmkt-types:StatusOfCompliance","duration","1) This field is mandatory.\n2) Please select from drop down only."]
["DetailsOfNonComplianceOfPolicyForDeterminingMaterialSubsidiaries","Details of non compliance of policy for determining material subsidiaries","xbrli:stringItemType","duration","This field is mandatory, If \"No\" selected in \"Compliance status\" field (Column \"G\")."]
["DisclosureWebLinkOfCompanyAtWhichPolicyForDeterminingMaterialSubsidiariesIsPlaced","Disclosure web link of company at which policy for determining material subsidiaries is placed","xbrli:stringItemType","duration","This field is mandatory, If \"Yes\" selected in \"Compliance status\" field (Column \"G\")."]
["DetailsOfFamiliarizationProgrammesImpartedToIndependentDirectors","Details of familiarization programmes imparted to independent directors","in-capmkt-types:StatusOfCompliance","duration","1) This field is mandatory.\n2) Please select from drop down only."]
["DetailsOfNonComplianceOfDetailsOfFamiliarizationProgrammesImpartedToIndependentDirectors","Details of non compliance of details of familiarization programmes imparted to independent directors","xbrli:stringItemType","duration","This field is mandatory, If \"No\" selected in \"Compliance status\" field (Column \"G\")."]
["DisclosureWebLinkOfCompanyAtWhichDetailsOfFamiliarizationProgrammesImpartedToIndependentDirectorsIsPlaced","Disclosure web link of company at which details of familiarization programmes imparted to independent directors is placed","xbrli:stringItemType","duration","This field is mandatory, If \"Yes\" selected in \"Compliance status\" field (Column \"G\")."]
["ContactInformationOfTheDesignatedOfficialsOfTheListedEntityWhoAreResponsibleForAssistingAndHandlingInvestorGrievances","Contact information of the designated officials of the listed entity who are responsible for assisting and handling investor grievances","in-capmkt-types:StatusOfCompliance","duration","1) This field is mandatory.\n2) Please select from drop down only."]
["DetailsOfNonComplianceOfContactInformationOfTheDesignatedOfficialsOfTheListedEntityWhoAreResponsibleForAssistingAndHandlingInvestorGrievances","Details of non compliance of contact information of the designated officials of the listed entity who are responsible for assisting and handling investor grievances","xbrli:stringItemType","duration","This field is mandatory, If \"No\" selected in \"Compliance status\" field (Column \"G\")."]
["DisclosureWebLinkOfCompanyAtWhichContactInformationOfTheDesignatedOfficialsOfTheListedEntityWhoAreResponsibleForAssistingAndHandlingInvestorGrievancesIsPlaced","Disclosure web link of company at which contact information of the designated officials of the listed entity who are responsible for assisting and handling investor grievances is placed","xbrli:stringItemType","duration","This field is mandatory, If \"Yes\" selected in \"Compliance status\" field (Column \"G\")."]
["EmailAddressForGrievanceRedressalAndOtherRelevantDetails","Email address for grievance redressal and other relevant details","in-capmkt-types:StatusOfCompliance","duration","1) This field is mandatory.\n2) Please select from drop down only."]
["DetailsOfNonComplianceOfEmailAddressForGrievanceRedressalAndOtherRelevantDetails","Details of non compliance of email address for grievance redressal and other relevant details","xbrli:stringItemType","duration","This field is mandatory, If \"No\" selected in \"Compliance status\" field (Column \"G\")."]
["DisclosureWebLinkOfCompanyAtWhichEmailAddressForGrievanceRedressalAndOtherRelevantDetailsIsPlaced","Disclosure web link of company at which email address for grievance redressal and other relevant details is placed","xbrli:stringItemType","duration","This field is mandatory, If \"Yes\" selected in \"Compliance status\" field (Column \"G\")."]
["FinancialResults","Financial results","in-capmkt-types:StatusOfCompliance","duration","1) This field is mandatory.\n2) Please select from drop down only."]
["DetailsOfNonComplianceOfFinancialResults","Details of non compliance of financial results","xbrli:stringItemType","duration","This field is mandatory, If \"No\" selected in \"Compliance status\" field (Column \"G\")."]
["DisclosureWebLinkOfCompanyAtWhichFinancialResultsIsPlaced","Disclosure web link of company at which financial results is placed","xbrli:stringItemType","duration","This field is mandatory, If \"Yes\" selected in \"Compliance status\" field (Column \"G\")."]
["ShareholdingPattern","Shareholding pattern","in-capmkt-types:StatusOfCompliance","duration","1) This field is mandatory.\n2) Please select from drop down only."]
["DetailsOfNonComplianceOfShareholdingPattern","Details of non compliance of shareholding pattern","xbrli:stringItemType","duration","This field is mandatory, If \"No\" selected in \"Compliance status\" field (Column \"G\")."]
["DisclosureWebLinkOfCompanyAtWhichShareholdingPatternIsPlaced","Disclosure web link of company at which shareholding pattern is placed","xbrli:stringItemType","duration","This field is mandatory, If \"Yes\" selected in \"Compliance status\" field (Column \"G\")."]
["DetailsOfAgreementsEnteredIntoWithTheMediaCompaniesAndOrTheirAssociates","Details of agreements entered into with the media companies and/or their associates","in-capmkt-types:StatusOfCompliance","duration","1) This field is mandatory.\n2) Please select from drop down only."]
["DetailsOfNonComplianceOfDetailsOfAgreementsEnteredIntoWithTheMediaCompaniesAndOrTheirAssociates","Details of non compliance of details of agreements entered into with the media companies and/or their associates","xbrli:stringItemType","duration","This field is mandatory, If \"No\" selected in \"Compliance status\" field (Column \"G\")."]
["DisclosureWebLinkOfCompanyAtWhichDetailsOfAgreementsEnteredIntoWithTheMediaCompaniesAndOrTheirAssociatesIsPlaced","Disclosure web link of company at which details of agreements entered into with the media companies and/or their associates is placed","xbrli:stringItemType","duration","This field is mandatory, If \"Yes\" selected in \"Compliance status\" field (Column \"G\")."]
["NewNameAndTheOldNameOfTheListedEntity","New name and the old name of the listed entity","in-capmkt-types:StatusOfCompliance","duration","1) This field is mandatory.\n2) Please select from drop down only."]
["DetailsOfNonComplianceOfNewNameAndTheOldNameOfTheListedEntity","Details of non compliance of new name and the old name of the listed entity","xbrli:stringItemType","duration","This field is mandatory, If \"No\" selected in \"Compliance status\" field (Column \"G\")."]
["DisclosureWebLinkOfCompanyAtDetailsOfNonComplianceOfNewNameAndTheOldNameOfTheListedEntityIsPlaced","Disclosure web link of company at details of non compliance of new name and the old name of the listed entity is placed","xbrli:stringItemType","duration","This field is mandatory, If \"Yes\" selected in \"Compliance status\" field (Column \"G\")."]
["DisclosureOfNotesOnWebsiteInTermsOfListingRegulationsExplanatoryTextBlock","Disclosure of notes on website in terms of Listing Regulations explanatory","nonnum:textBlockItemType","duration","This field is mandatory, If \"Yes\" selected in \"Compliance status\" field (Column \"G\")."]
["AudioOrVideoRecordingsAndTranscriptsOfPostEariningsOrQuarterlyCalls","Audio recordings, video recordings, if any, and transcripts of post earnings or quarterly calls, by whatever name called, conducted physically or through digital means","in-capmkt-types:StatusOfCompliance","duration","1) This field is mandatory.\n2) Please select from drop down only."]
["AdvertisementsAsPerRegulation471","Advertisements as per regulation 47 (1)","in-capmkt-types:StatusOfCompliance","duration","1) This field is mandatory.\n2) Please select from drop down only."]
["SecretarialComplianceReport","Secretarial Compliance Report","in-capmkt-types:StatusOfCompliance","duration","1) This field is mandatory.\n2) Please select from drop down only."]
["MaterialityPolicyAsPerSubRegulation4Regulation30","Materiality Policy as per Regulation 30 (4)","in-capmkt-types:StatusOfCompliance","duration","1) This field is mandatory.\n2) Please select from drop down only."]
["DisclosureOfContactDetailsOfKMPWhoAreAuthorizedForThePurposeOfDeterminingMaterialityUnderSubRegulation5OfRegulation30","Disclosure of contact details of KMP who are authorized for the purpose of determining materiality as required under regulation 30(5)","in-capmkt-types:StatusOfCompliance","duration","1) This field is mandatory.\n2) Please select from drop down only."]
["DisclosuresUnderSubRegulation8OfRegulation30","Disclosures under regulation 30(8)","in-capmkt-types:StatusOfCompliance","duration","1) This field is mandatory.\n2) Please select from drop down only."]
["StatementsOfDeviationsOrVariationsAsSpecifiedInRegulation32","Statements of deviation(s) or variations(s) as specified in regulation 32","in-capmkt-types:StatusOfCompliance","duration","1) This field is mandatory.\n2) Please select from drop down only."]
["DividendDistributionPolicyAsPerRegulation43A1","Dividend Distribution policy as per Regulation 43A(1)","in-capmkt-types:StatusOfCompliance","duration","1) This field is mandatory.\n2) Please select from drop down only."]
["AnnualReturnAsProvidedUnderSection92OfTheCompaniesAct2013","Annual return as provided under section 92 of the Companies Act, 2013","in-capmkt-types:StatusOfCompliance","duration","1) This field is mandatory.\n2) Please select from drop down only."]
["ConfirmationThatTheDisclosuresAreInASeparateSectionAsSpecifiedInSubRegulation2OfRegulation46","Confirmation that the above disclosures are in a separate section as specified in regulation 46(2)","in-capmkt-types:StatusOfCompliance","duration","1) This field is mandatory.\n2) Please select from drop down only."]
["ComplianceWithSubRegulation3OfRegulation46WithRespectToAccuracyOfDisclosuresOnTheWebsiteAndTimelyUpdation","Compliance with regulation 46(3) with respect to accuracy of disclosures on the website and timely updating","in-capmkt-types:StatusOfCompliance","duration","1) This field is mandatory.\n2) Please select from drop down only."]
["Annx II - Annual Affirmations"]
["IndependentDirectorSHaveBeenAppointedInTermsOfSpecifiedCriteriaOfIndependenceAndOrEligibility","Independent director(s) have been appointed in terms of specified criteria of ‘independence’ and/or ‘eligibility’","in-capmkt-types:StatusOfCompliance","duration","1) This field is mandatory.\n2) Please select from drop down only."]
["DetailsOfNonComplianceOfIndependentDirectorSHaveBeenAppointedInTermsOfSpecifiedCriteriaOfIndependenceAndOrEligibility","Details of non compliance of independent directors have been appointed in terms of specified criteria of independence and or eligibility","xbrli:stringItemType","duration","This field is mandatory, If \"No\" selected in \"Compliance status\" field (Column \"H\")."]
["BoardComposition","Board composition","in-capmkt-types:StatusOfCompliance","duration","1) This field is mandatory.\n2) Please select from drop down only."]
["DetailsOfNonComplianceOfBoardComposition","Details of non compliance of board composition","xbrli:stringItemType","duration","This field is mandatory, If \"No\" selected in \"Compliance status\" field (Column \"H\")."]
["MeetingOfBoardOfDirectors","Meeting of Board of directors","in-capmkt-types:StatusOfCompliance","duration","1) This field is mandatory.\n2) Please select from drop down only."]
["DetailsOfNonComplianceOfMeetingOfBoardOfDirectors","Details of non compliance of meeting of board of directors","xbrli:stringItemType","duration","This field is mandatory, If \"No\" selected in \"Compliance status\" field (Column \"H\")."]
["ReviewOfComplianceReports","Review of Compliance Reports","in-capmkt-types:StatusOfCompliance","duration","1) This field is mandatory.\n2) Please select from drop down only."]
["DetailsOfNonComplianceOfReviewOfComplianceReports","Details of non compliance of review of compliance reports","xbrli:stringItemType","duration","This field is mandatory, If \"No\" selected in \"Compliance status\" field (Column \"H\")."]
["PlansForOrderlySuccessionForAppointments","Plans for orderly succession for appointments","in-capmkt-types:StatusOfCompliance","duration","1) This field is mandatory.\n2) Please select from drop down only."]
["DetailsOfNonComplianceOfPlansForOrderlySuccessionForAppointments","Details of non compliance of plans for orderly succession for appointments","xbrli:stringItemType","duration","This field is mandatory, If \"No\" selected in \"Compliance status\" field (Column \"H\")."]
["CodeOfConduct","Code of Conduct","in-capmkt-types:StatusOfCompliance","duration","1) This field is mandatory.\n2) Please select from drop down only."]
["DetailsOfNonComplianceOfCodeOfConduct","Details of non compliance of code of conduct","xbrli:stringItemType","duration","This field is mandatory, If \"No\" selected in \"Compliance status\" field (Column \"H\")."]
["FeesOrCompensation","Fees/compensation","in-capmkt-types:StatusOfCompliance","duration","1) This field is mandatory.\n2) Please select from drop down only."]
["DetailsOfNonComplianceOfFeesOrCompensation","Details of non compliance of fees or compensation","xbrli:stringItemType","duration","This field is mandatory, If \"No\" selected in \"Compliance status\" field (Column \"H\")."]
["MinimumInformation","Minimum Information","in-capmkt-types:StatusOfCompliance","duration","1) This field is mandatory.\n2) Please select from drop down only."]
["DetailsOfNonComplianceOfMinimumInformation","Details of non compliance of minimum information","xbrli:stringItemType","duration","This field is mandatory, If \"No\" selected in \"Compliance status\" field (Column \"H\")."]
["ComplianceCertificate","Compliance Certificate","in-capmkt-types:StatusOfCompliance","duration","1) This field is mandatory.\n2) Please select from drop down only."]
["DetailsOfNonComplianceOfComplianceCertificate","Details of non compliance of compliance certificate","xbrli:stringItemType","duration","This field is mandatory, If \"No\" selected in \"Compliance status\" field (Column \"H\")."]
["RiskAssessmentAndManagement","Risk Assessment & Management","in-capmkt-types:StatusOfCompliance","duration","1) This field is mandatory.\n2) Please select from drop down only."]
["DetailsOfNonComplianceOfRiskAssessmentAndManagement","Details of non compliance of risk assessment and management","xbrli:stringItemType","duration","This field is mandatory, If \"No\" selected in \"Compliance status\" field (Column \"H\")."]
["PerformanceEvaluationOfIndependentDirectors","Performance Evaluation of Independent Directors","in-capmkt-types:StatusOfCompliance","duration","1) This field is mandatory.\n2) Please select from drop down only."]
["DetailsOfNonComplianceOfPerformanceEvaluationOfIndependentDirectors","Details of non compliance of performance evaluation of independent directors","xbrli:stringItemType","duration","This field is mandatory, If \"No\" selected in \"Compliance status\" field (Column \"H\")."]
["CompositionOfAuditCommittee","Composition of Audit Committee","in-capmkt-types:StatusOfCompliance","duration","1) This field is mandatory.\n2) Please select from drop down only."]
["DetailsOfNonComplianceOfCompositionOfAuditCommittee","Details of non compliance of composition of audit committee","xbrli:stringItemType","duration","This field is mandatory, If \"No\" selected in \"Compliance status\" field (Column \"H\")."]
["MeetingOfAuditCommittee","Meeting of Audit Committee","in-capmkt-types:StatusOfCompliance","duration","1) This field is mandatory.\n2) Please select from drop down only."]
["DetailsOfNonComplianceOfMeetingOfAuditCommittee","Details of non compliance of meeting of audit committee","xbrli:stringItemType","duration","This field is mandatory, If \"No\" selected in \"Compliance status\" field (Column \"H\")."]
["CompositionOfNominationAndRemunerationCommittee","Composition of nomination & remuneration committee","in-capmkt-types:StatusOfCompliance","duration","1) This field is mandatory.\n2) Please select from drop down only."]
["DetailsOfNonComplianceOfCompositionOfNominationAndRemunerationCommittee","Details of non compliance of composition of nomination and remuneration committee","xbrli:stringItemType","duration","This field is mandatory, If \"No\" selected in \"Compliance status\" field (Column \"H\")."]
["CompositionOfStakeholderRelationshipCommittee","Composition of stakeholder relationship committee","in-capmkt-types:StatusOfCompliance","duration","1) This field is mandatory.\n2) Please select from drop down only."]
["DetailsOfNonComplianceOfCompositionOfStakeholderRelationshipCommittee","Details of non compliance of composition of stakeholder relationship committee","xbrli:stringItemType","duration","This field is mandatory, If \"No\" selected in \"Compliance status\" field (Column \"H\")."]
["CompositionAndRoleOfRiskManagementCommittee","Composition and role of risk management committee","in-capmkt-types:StatusOfCompliance","duration","1) This field is mandatory.\n2) Please select from drop down only."]
["DetailsOfNonComplianceOfCompositionAndRoleOfRiskManagementCommittee","Details of non compliance of composition and role of risk management committee","xbrli:stringItemType","duration","This field is mandatory, If \"No\" selected in \"Compliance status\" field (Column \"H\")."]
["VigilMechanism","Vigil mechanism","in-capmkt-types:StatusOfCompliance","duration","1) This field is mandatory.\n2) Please select from drop down only."]
["DetailsOfNonComplianceOfVigilMechanism","Details of non compliance of vigil mechanism","xbrli:stringItemType","duration","This field is mandatory, If \"No\" selected in \"Compliance status\" field (Column \"H\")."]
["PolicyForRelatedPartyTransaction","Policy for related party transaction","in-capmkt-types:StatusOfCompliance","duration","1) This field is mandatory.\n2) Please select from drop down only."]
["DetailsOfNonComplianceOfPolicyForRelatedPartyTransaction","Details of non compliance of policy for related party transaction","xbrli:stringItemType","duration","This field is mandatory, If \"No\" selected in \"Compliance status\" field (Column \"H\")."]
["PriorOrOmnibusApprovalOfAuditCommitteeForAllRelatedPartyTransactions","Prior or omnibus approval of audit committee for all related party transactions","in-capmkt-types:StatusOfCompliance","duration","1) This field is mandatory.\n2) Please select from drop down only."]
["DetailsOfNonComplianceOfPriorOrOmnibusApprovalOfAuditCommitteeForAllRelatedPartyTransactions","Details of non compliance of prior or omnibus approval of audit committee for all related party transactions","xbrli:stringItemType","duration","This field is mandatory, If \"No\" selected in \"Compliance status\" field (Column \"H\")."]
["ApprovalForMaterialRelatedPartyTransactions","Approval for material related party transactions","in-capmkt-types:StatusOfCompliance","duration","1) This field is mandatory.\n2) Please select from drop down only."]
["DetailsOfNonComplianceOfApprovalForMaterialRelatedPartyTransactions","Details of non compliance of approval for material related party transactions","xbrli:stringItemType","duration","This field is mandatory, If \"No\" selected in \"Compliance status\" field (Column \"H\")."]
["CompositionOfBoardOfDirectorsOfUnlistedMaterialSubsidiary","Composition of board of directors of unlisted material subsidiary","in-capmkt-types:StatusOfCompliance","duration","1) This field is mandatory.\n2) Please select from drop down only."]
["DetailsOfNonComplianceOfCompositionOfBoardOfDirectorsOfUnlistedMaterialSubsidiary","Details of non compliance of composition of board of directors of unlisted material subsidiary","xbrli:stringItemType","duration","This field is mandatory, If \"No\" selected in \"Compliance status\" field (Column \"H\")."]
["OtherCorporateGovernanceRequirementsWithRespectToSubsidiaryOfListedEntity","Other corporate governance requirements with respect to subsidiary of listed entity","in-capmkt-types:StatusOfCompliance","duration","1) This field is mandatory.\n2) Please select from drop down only."]
["DetailsOfNonComplianceOfOtherCorporateGovernanceRequirementsWithRespectToSubsidiaryOfListedEntity","Details of non compliance of other corporate governance requirements with respect to subsidiary of listed entity","xbrli:stringItemType","duration","This field is mandatory, If \"No\" selected in \"Compliance status\" field (Column \"H\")."]
["MaximumDirectorshipAndTenure","Maximum directorship and tenure","in-capmkt-types:StatusOfCompliance","duration","1) This field is mandatory.\n2) Please select from drop down only."]
["DetailsOfNonComplianceOfMaximumDirectorshipAndTenure","Details of non compliance of maximum directorship and tenure","xbrli:stringItemType","duration","This field is mandatory, If \"No\" selected in \"Compliance status\" field (Column \"H\")."]
["MeetingOfIndependentDirectors","Meeting of independent directors","in-capmkt-types:StatusOfCompliance","duration","1) This field is mandatory.\n2) Please select from drop down only."]
["DetailsOfNonComplianceOfMeetingOfIndependentDirectors","Details of non compliance of meeting of independent directors","xbrli:stringItemType","duration","This field is mandatory, If \"No\" selected in \"Compliance status\" field (Column \"H\")."]
["FamiliarizationOfIndependentDirectors","Familiarization of independent directors","in-capmkt-types:StatusOfCompliance","duration","1) This field is mandatory.\n2) Please select from drop down only."]
["DetailsOfNonComplianceOfFamiliarizationOfIndependentDirectors","Details of non compliance of familiarization of independent directors","xbrli:stringItemType","duration","This field is mandatory, If \"No\" selected in \"Compliance status\" field (Column \"H\")."]
["MembershipsInCommittees","Memberships in committees","in-capmkt-types:StatusOfCompliance","duration","1) This field is mandatory.\n2) Please select from drop down only."]
["DetailsOfNonComplianceOfMembershipsInCommittees","Details of non compliance of memberships in committees","xbrli:stringItemType","duration","This field is mandatory, If \"No\" selected in \"Compliance status\" field (Column \"H\")."]
["AffirmationWithComplianceToCodeOfConductFromMembersOfBoardOfDirectorsAndSeniorManagementPersonnel","Affirmation with compliance to code of conduct from members of board of directors and senior management personnel","in-capmkt-types:StatusOfCompliance","duration","1) This field is mandatory.\n2) Please select from drop down only."]
["DetailsOfNonComplianceOfAffirmationWithComplianceToCodeOfConductFromMembersOfBoardOfDirectorsAndSeniorManagementPersonnel","Details of non compliance of affirmation with compliance to code of conduct from members of board of directors and senior management personnel","xbrli:stringItemType","duration","This field is mandatory, If \"No\" selected in \"Compliance status\" field (Column \"H\")."]
["PolicyWithRespectToObligationsOfDirectorsAndSeniorManagement","Policy with respect to obligations of directors and senior management","in-capmkt-types:StatusOfCompliance","duration","1) This field is mandatory.\n2) Please select from drop down only."]
["DetailsOfNonComplianceOfPolicyWithRespectToObligationsOfDirectorsAndSeniorManagement","Details of non compliance of policy with respect to obligations of directors and senior management","xbrli:stringItemType","duration","This field is mandatory, If \"No\" selected in \"Compliance status\" field (Column \"H\")."]
["DisclosureOfNotesOnAnnualAffirmationsExplanatoryTextBlock","Disclosure notes on annual affirmations","nonnum:textBlockItemType","duration"]
["NameOfSignatoryForAnnualAffirmations","Name of signatory for annual affirmations","xbrli:stringItemType","duration","This field is mandatory."]
["DesignationOfPersonForAnnualAffirmations","Designation of person for annual affirmations","in-capmkt-types:Designation","duration","1) This field is mandatory.\n2) Please select from drop down only."]
["RoleOfAuditCommitteeAndInformationToBeReviewedByTheAuditCommittee","Role of Audit Committee and information to be reviewed by the audit committee","in-capmkt-types:StatusOfCompliance","duration","1) This field is mandatory.\n2) Please select from drop down only."]
["RoleOfNominationAndRemunerationCommittee","Role of Nomination and Remuneration Committee","in-capmkt-types:StatusOfCompliance","duration","1) This field is mandatory.\n2) Please select from drop down only."]
["CompositionOfStakeholderRelationshipCommittee","Composition of Stakeholder Relationship Committee","in-capmkt-types:StatusOfCompliance","duration","1) This field is mandatory.\n2) Please select from drop down only."]
["RoleOfStakeholdersRelationshipCommittee","Role of Stakeholders Relationship Committee","in-capmkt-types:StatusOfCompliance","duration","1) This field is mandatory.\n2) Please select from drop down only."]
["QuorumOfRiskManagementCommitteemeeting","Quorum of Risk Management Committee meeting","in-capmkt-types:StatusOfCompliance","duration","1) This field is mandatory.\n2) Please select from drop down only."]
["GapBetweenTheMeetingsOfTheRiskManagementCommittee","Gap between the meetings of the Risk Management Committeea","in-capmkt-types:StatusOfCompliance","duration","1) This field is mandatory.\n2) Please select from drop down only."]
["MaximumDirectorshipAndTenure","Maximum  Tenure","in-capmkt-types:StatusOfCompliance","duration","1) This field is mandatory.\n2) Please select from drop down only."]
["AppointmentReAppointmentOrRemovalOfAnIndependentDirectorThroughSpecialResolutionOrTheAlternateMechanism","Appointment, Re-appointment or removal of an Independent Director through special resolution or the alternate mechanism","in-capmkt-types:StatusOfCompliance","duration","1) This field is mandatory.\n2) Please select from drop down only."]
["ConfirmationWithRespectToAppointmentOfIndependentDirectorsWhoResignedFromTheListedEntity","Confirmation with respect to appointment of Independent Directors who resigned from the listed entity","in-capmkt-types:StatusOfCompliance","duration","1) This field is mandatory.\n2) Please select from drop down only."]
["MembershipsInCommittees","Memberships in Committees","in-capmkt-types:StatusOfCompliance","duration","1) This field is mandatory.\n2) Please select from drop down only."]
["AffirmationWithComplianceToCodeOfConductFromMembersOfBoardOfDirectorsAndSeniorManagementPersonnel","Affirmation with compliance to code of conduct from members of Board of Directors and Senior management personnel","in-capmkt-types:StatusOfCompliance","duration","1) This field is mandatory.\n2) Please select from drop down only."]
["PolicyWithRespectToObligationsOfDirectorsAndSeniorManagement","Policy with respect to Obligations of directors and senior management","in-capmkt-types:StatusOfCompliance","duration","1) This field is mandatory.\n2) Please select from drop down only."]
["ApprovalOfTheBoardAndShareholdersForCompensationOrProfitSharing","Approval of the Board and shareholders for compensation or profit sharing in connection with dealings in the securities of the listed entity","in-capmkt-types:StatusOfCompliance","duration","1) This field is mandatory.\n2) Please select from drop down only."]
["VacanciesInRespectKeyManagerialPersonnel","Vacancies in respect Key Managerial Personnel","in-capmkt-types:StatusOfCompliance","duration","1) This field is mandatory.\n2) Please select from drop down only."]
["Annx II - Annual Aff. (contd)"]
["TheListedEntityHasApprovedMaterialSubsidiaryPolicyAndTheCorporateGovernanceRequirementsWithRespectToSubsidiaryOfListedEntityHaveBeenComplied","The Listed Entity has approved Material Subsidiary Policy and the Corporate Governance requirements with respect to subsidiary of Listed Entity have been complied","in-capmkt-types:StatusOfCompliance","duration","1) This field is mandatory.\n2) Please select from drop down only."]
["Affirmations","Affirmations","xbrli:stringItemType","duration"]
["DisclosureOfNotesOnAffirmationsExplanatoryTextBlock","Disclosure notes on affirmations","nonnum:textBlockItemType","duration"]
["NameOfSignatoryAffirmations","Name of signatory affirmations","xbrli:stringItemType","duration","This field is mandatory."]
["DesignationOfPersonAffirmations","Designation of person affirmations","in-capmkt-types:Designation","duration","1) This field is mandatory.\n2) Please select from drop down only."]
["Annexure III"]
["CopyOfTheAnnualReportIncludingBalanceSheetProfitAndLossAccountDirectorsReportCorporateGovernanceReportBusinessResponsibilityReportDisplayedOnWebsite","Copy of the annual report including balance sheet, profit and loss account, directors report, corporate governance report, BRSR & BRSR core, if applicable, displayed on website","in-capmkt-types:StatusOfCompliance","duration","1) This field is mandatory.\n2) Please select from drop down only."]
["DetailsOfNonComplianceOfCopyOfTheAnnualReportIncludingBalanceSheetProfitAndLossAccountDirectorsReportCorporateGovernanceReportBusinessResponsibilityReportDisplayedOnWebsite","Details of non compliance of copy of the annual report including balance sheet, profit and loss account, directors report, corporate governance report, business responsibility report displayed on website","xbrli:stringItemType","duration","This field is mandatory, If \"No\" selected in \"Compliance status\" field (Column \"H\")."]
["PresenceOfChairpersonOfAuditCommitteeAtTheAnnualGeneralMeeting","Presence of chairperson of audit committee at the annual general meeting","in-capmkt-types:StatusOfCompliance","duration","1) This field is mandatory.\n2) Please select from drop down only."]
["DetailsOfNonComplianceOfPresenceOfChairpersonOfAuditCommitteeAtTheAnnualGeneralMeeting","Details of non compliance of presence of chairperson of audit committee at the annual general meeting","xbrli:stringItemType","duration","This field is mandatory, If \"No\" selected in \"Compliance status\" field (Column \"H\")."]
["PresenceOfChairpersonOfTheNominationAndRemunerationCommitteeAtTheAnnualGeneralMeeting","Presence of chairperson of the nomination and remuneration committee at the annual general meeting","in-capmkt-types:StatusOfCompliance","duration","1) This field is mandatory.\n2) Please select from drop down only."]
["DetailsOfNonComplianceOfPresenceOfChairpersonOfTheNominationAndRemunerationCommitteeAtTheAnnualGeneralMeeting","Details of non compliance of presence of chairperson of the nomination and remuneration committee at the annual general meeting","xbrli:stringItemType","duration","This field is mandatory, If \"No\" selected in \"Compliance status\" field (Column \"H\")."]
["WhetherCorporateGovernanceReportDisclosedInAnnualReport","Whether “Corporate Governance Report” disclosed in Annual Report","in-capmkt-types:StatusOfCompliance","duration","1) This field is mandatory.\n2) Please select from drop down only."]
["DetailsOfNonComplianceOfCorporateGovernanceReportDisclosedInAnnualReport","Details of non compliance of corporate governance report disclosed in annual report","xbrli:stringItemType","duration","This field is mandatory, If \"No\" selected in \"Compliance status\" field (Column \"H\")."]
["DisclosureOfNotesOnAnnualFormatsForComplianceReportOnCorporateGovernanceExplanatoryTextBlock","Disclosure notes on annual formats for compliance report on corporate governance","nonnum:textBlockItemType","duration"]
["NameOfSignatoryForHalfYearlyAffirmations","Name of signatory for half yearly affirmations","xbrli:stringItemType","duration"]
["DesignationOfPersonForHalfYearlyAffirmations","Designation of person for half yearly affirmations","in-capmkt-types:Designation","duration","1) This field is mandatory.\n2) Please select from drop down only."]
["Signatory Details"]
["NameOfSignatory","Name of signatory","xbrli:stringItemType","duration","This is a mandatory field. Please enter name of signatory."]
["DesignationOfPerson","Designation of person","in-capmkt-types:Designation","duration","This is a mandatory field. Please enter designation of person. "]
["Place","Place","xbrli:stringItemType","duration","This is a mandatory field. "]
["DateOfSigning","Date","xbrli:dateItemType","instant","This is a mandatory field. Please enter date which is greather than or equal to Date of Quarter Ending and less than or equal to current date. Enter date in \"dd-mm-yyyy\" format."]
["WhetherTheListedEntityHasARegularChairperson","Whether the listed entity has a Regular Chairperson","xbrli:booleanItemType","duration","This is a mandatory field. Value must be \"Yes\", \"No\" or \"NA\", Select value from drop down list."]
["DateOfAppointmentOfDirectorInCommittee","Date of Appointment","xbrli:dateItemType","instant","Please enter date in \"dd-mm-yyyy\" format or Date must less than quarter  end date and not future date."]
["DateOfCessationOfDirectorInCommittee","Date of Cessation","xbrli:dateItemType","instant","Please enter date in \"dd-mm-yyyy\" format or date must between current quarter.                                                                                                                                                                                                                      Note :  If more than one Chairperson is entered than Date of Cessation must be provided for any one of the Chairperson.             "]
["WhetherTheAuditCommitteeHasARegularChairperson","Whether the Audit Committee has a Regular Chairperson","xbrli:booleanItemType","duration","This is a mandatory field. Value must be \"Yes\", \"No\" or \"NA\", Select value from drop down list."]
["WhetherTheNominationAndRemunerationCommitteeHasARegularChairperson","Whether the Nomination and remuneration committee has a Regular Chairperson","xbrli:booleanItemType","duration","This is a mandatory field. Value must be \"Yes\", \"No\" or \"NA\", Select value from drop down list."]
["WhetherTheStakeholdersRelationshipCommitteeHasARegularChairperson","Whether the Stakeholders Relationship Committee has a Regular Chairperson","xbrli:booleanItemType","duration","This is a mandatory field. Value must be \"Yes\", \"No\" or \"NA\", Select value from drop down list."]
["WhetherTheRiskManagementCommitteeHasARegularChairperson","Whether the Risk Management Committee has a Regular Chairperson","xbrli:booleanItemType","duration","This is a mandatory field. Value must be \"Yes\", \"No\" or \"NA\", Select value from drop down list."]
["WhetherTheCorporateSocialResponsibilityCommitteeHasARegularChairperson","Whether the Corporate Social Responsibility Committee has a Regular Chairperson","xbrli:booleanItemType","duration","This is a mandatory field. Value must be \"Yes\", \"No\" or \"NA\", Select value from drop down list."]
["DisclosureOfMeetingOfBoardNotesInAbsenceOfDateTextBlock","Disclosure of notes on meeting of Boards explanatory in absense of date","nonnum:textBlockItemType","duration"]
["DisclosureOfMeetingOfCommitteeNotesInAbsenceOfDateTextBlock","Disclosure of notes on meeting of Committees explanatory in absense of date","nonnum:textBlockItemType","duration"]
["New Elements"]
["MarketCapitalisationAsPerImmediatePreviousFinancialYear","Market Capitalisation as per immediate previous Financial Year","in-capmkt-types:TypeOfMarketCap","duration","1) This is a mandatory field.\n2) Please select from dropdown only."]
["DateOfBirth","Date of Birth","xbrli:dateItemType","instant","1) This is a mandatory field.\n2) Please enter date in \"DD-MM-YYYY\" format."]
["DateOfAppointmentOfDirector","Initial Date of appointment","xbrli:dateItemType","instant","1) This is a mandatory field.\n2) Future date not allowed."]
["DateOfReappointmentOfDirector","Date of Re-appointment of director in the current term ","xbrli:dateItemType","instant"]
["NumberOfIndependentDirectorshipInListedEntitiesIncludingThisListedEntity","Number of Independent directorship in listed entities including this listed entity","xbrli:decimalItemType","instant"]
["WhetherRequirementOfQuorumMet","Whether requirement of Quorum met BOD","xbrli:booleanItemType","duration"]
["NumberOfDirectorsPresentInMeetingOfBoardOfDirectors","Number of Directors present","xbrli:decimalItemType","instant","1) This is mandatory for current quarter meetings only.\n2) \"Number of Directors present* (All directors including Independent Director)\" must be less then or equal to the \"Total Number of Directors as on date of the meeting\"."]
["NumberOfIndependentDirectorsAttendingTheMeeting","No. of Independent Directors attending the meeting","xbrli:decimalItemType","instant","1) This is mandatory for current quarter meetings only.\n2) \"No. of Independent Directors attending the meeting\" must be less then or equal to the \"Number of Directors present* (All directors including Independent Director)\"."]
["NumberOfDirectorPresentInMeetingOfCommitteeAllDirectorsIncludingIndependentDirector","Number of Directors Present (All Directors including Independent Director)","xbrli:decimalItemType","instant","1) This is mandatory for current quarter meetings only.\n2) \"Number of Directors Present (All Directors including Independent Director)\" must be less then or equal to the \"Total Number of Directors in the Committee as on date of the meeting\"."]
["NumberOfIndependentDirectorAttendingMeetingOfCommittee","No. of Independent Directors attending the meeting in Committes","xbrli:decimalItemType","instant","1) This is mandatory for current quarter meetings only.\n2) \"No. of Independent Directors attending the meeting\" must be less then or equal to the \"Number of Directors (All directors including Independent director)\"."]
["CreditRatingOrRevisionInCreditRatingObtained","Credit rating or revision in credit rating obtained","in-capmkt-types:StatusOfCompliance","duration","1) This field is mandatory.\n2) Please select from drop down only."]
["MaterialityPolicyAsPerSubRegulation4Regulation30","Materiality Policy as per Regulation 30","in-capmkt-types:StatusOfCompliance","duration","This is a mandatory field. Value must be \"Yes\", \"No\" or \"NA\", Select value from drop down list."]
["DetailsOfNonComplianceOfCreditRatingOrRevisionInCreditRatingObtained","Details of non compliance of Credit rating or revision in credit rating obtained","xbrli:stringItemType","duration","This field is mandatory, If \"No\" selected in \"Compliance status\" field (Column \"G\")."]
["DetailsOfNonComplianceOfMaterialityPolicyAsPerSubRegulation4Regulation30","Details of non compliance of Materiality Policy as per Regulation 30","xbrli:stringItemType","duration"]
["DisclosureWebLinkOfCompanyAtWhichCreditRatingOrRevisionInCreditRatingObtainedIsPlaced","Disclosure web link of company at details of non compliance of Credit rating or revision in credit rating obtained","xbrli:stringItemType","duration","This field is mandatory, If \"Yes\" selected in \"Compliance status\" field (Column \"G\")."]
["DisclosureWebLinkOfCompanyAtMaterialityPolicyAsPerSubRegulation4Regulation30IsPlaced","Disclosure web link of company at details of non compliance of Materiality Policy as per Regulation 30","xbrli:stringItemType","duration"]
["QuorumOfBoardMeeting","Quorum of Board meeting","in-capmkt-types:StatusOfCompliance","duration","1) This field is mandatory.\n2) Please select from drop down only."]
["DetailsOfNonComplianceOfQuorumOfBoardMeeting","Details of non compliance of Quorum of Board meeting","xbrli:stringItemType","duration","This field is mandatory, If \"No\" selected in \"Compliance status\" field (Column \"H\")."]
["RecommendationOfBoard","Recommendation of Board","in-capmkt-types:StatusOfCompliance","duration","1) This field is mandatory.\n2) Please select from drop down only."]
["DetailsOfNonComplianceOfRecommendationOfBoard","Details of non compliance of Recommendation of Board","xbrli:stringItemType","duration","This field is mandatory, If \"No\" selected in \"Compliance status\" field (Column \"H\")."]
["MaximumNumberOfDirectorships","Maximum number of Directorships","in-capmkt-types:StatusOfCompliance","duration","1) This field is mandatory.\n2) Please select from drop down only."]
["DetailsOfNonComplianceOfMaximumNumberOfDirectorships","Details of non compliance of Maximum number of Directorships","xbrli:stringItemType","duration","This field is mandatory, If \"No\" selected in \"Compliance status\" field (Column \"H\")."]
["QuorumOfNominationAndRemunerationCommitteeMeeting","Quorum of Nomination and Remuneration Committee meeting","in-capmkt-types:StatusOfCompliance","duration","1) This field is mandatory.\n2) Please select from drop down only."]
["DetailsOfNonComplianceOfQuorumOfNominationAndRemunerationCommitteeMeeting","Details of non compliance of Quorum of Nomination and Remuneration Committee meeting","xbrli:stringItemType","duration","This field is mandatory, If \"No\" selected in \"Compliance status\" field (Column \"H\")."]
["MeetingOfNominationAndRemunerationCommittee","Meeting of Nomination and Remuneration Committee","in-capmkt-types:StatusOfCompliance","duration","1) This field is mandatory.\n2) Please select from drop down only."]
["DetailsOfNonComplianceOfMeetingOfNominationAndRemunerationCommittee","Details of non compliance of Meeting of Nomination and Remuneration Committee","xbrli:stringItemType","duration","This field is mandatory, If \"No\" selected in \"Compliance status\" field (Column \"H\")."]
["MeetingOfStakeholdersRelationshipCommittee","Meeting of Stakeholders Relationship Committee","in-capmkt-types:StatusOfCompliance","duration","1) This field is mandatory.\n2) Please select from drop down only."]
["DetailsOfNonComplianceOfMeetingOfStakeholdersRelationshipCommittee","Details of non compliance of Meeting of Stakeholders Relationship Committee","xbrli:stringItemType","duration","This field is mandatory, If \"No\" selected in \"Compliance status\" field (Column \"H\")."]
["MeetingOfRiskManagementCommittee","Meeting of Risk Management Committee","in-capmkt-types:StatusOfCompliance","duration","1) This field is mandatory.\n2) Please select from drop down only."]
["DetailsOfNonComplianceOfMeetingOfRiskManagementCommittee","Details of non compliance of Meeting of Risk Management Committee","xbrli:stringItemType","duration","This field is mandatory, If \"No\" selected in \"Compliance status\" field (Column \"H\")."]
["DisclosureOfRelatedPartyTransactionsOnConsolidatedBasis","Disclosure of related party transactions on consolidated basis","in-capmkt-types:StatusOfCompliance","duration","1) This field is mandatory.\n2) Please select from drop down only."]
["DetailsOfNonComplianceOfDisclosureOfRelatedPartyTransactionsOnConsolidatedBasis","Details of non compliance of Disclosure of related party transactions on consolidated basis","xbrli:stringItemType","duration","This field is mandatory, If \"No\" selected in \"Compliance status\" field (Column \"H\")."]
["AnnualSecretarialComplianceReport","Annual Secretarial Compliance Report",null,null,"This is a mandatory field. Value must be \"Yes\", \"No\" or \"NA\", Select value from drop down list."]
["DetailsOfNonComplianceOfAnnualSecretarialComplianceReport","Details of non compliance of Annual Secretarial Compliance Report"]
["AlternateDirectorToIndependentDirector","Alternate Director to Independent Director","in-capmkt-types:StatusOfCompliance","duration","1) This field is mandatory.\n2) Please select from drop down only."]
["DetailsOfNonComplianceOfAlternateDirectorToIndependentDirector","Details of non compliance of Alternate Director to Independent Director","xbrli:stringItemType","duration","This field is mandatory, If \"No\" selected in \"Compliance status\" field (Column \"H\")."]
["DeclarationFromIndependentDirector","Declaration from Independent Director","in-capmkt-types:StatusOfCompliance","duration","1) This field is mandatory.\n2) Please select from drop down only."]
["DetailsOfNonComplianceOfDeclarationFromIndependentDirector","Details of non compliance of Declaration from Independent Director","xbrli:stringItemType","duration","This field is mandatory, If \"No\" selected in \"Compliance status\" field (Column \"H\")."]
["DAndOInsuranceForIndependentDirectors","D & O Insurance for Independent Directors",null,null,"This is a mandatory field. Value must be \"Yes\", \"No\" or \"NA\", Select value from drop down list."]
["DetailsOfNonComplianceOfDAndOInsuranceForIndependentDirectors","Details of non compliance of D & O Insurance for Independent Directors"]
["WhetherChairpersonIsRelatedToMDOrCEO","Whether Chairperson is related to MD or CEO","xbrli:booleanItemType","duration"]
["PresenceOfChairpersonOfTheStakeholderRelationshipCommitteeAtTheAnnualGeneralMeeting","Presence of Chairperson of the Stakeholder Relationship committee at the annual general meeting","in-capmkt-types:StatusOfCompliance","duration","1) This field is mandatory.\n2) Please select from drop down only."]
["DetailsOfNonComplianceOfPresenceOfChairpersonOfTheStakeholderRelationshipCommitteeAtTheAnnualGeneralMeeting","Details of non compliance of Presence of Chairperson of the Stakeholder Relationship committee at the annual general meeting","xbrli:stringItemType","duration","This field is mandatory, If \"No\" selected in \"Compliance status\" field (Column \"H\")."]
["ScheduleOfAnalystOrInstitutionalInvestorMeetAndPresentationPreparedByListedEntityForAnalystOrInstitutionalInvestorMeet","(I) Schedule of analyst or institutional investor meet\n(II) Presentations prepared by the listed entity for analysts or institutional investors meet, post earnings or quarterly calls prior to beginning of such events.","in-capmkt-types:StatusOfCompliance","duration","1) This field is mandatory.\n2) Please select from drop down only."]
["DetailsOfNonComplianceOfScheduleOfAnalystOrInstitutionalInvestorMeetAndPresentationPreparedByListedEntityForAnalystOrInstitutionalInvestorMeet","Details of non compliance of Schedule of analyst or institutional investor meet and presentations made by the listed entity to analysts or institutional investors simultaneously with submission to stock exchange","xbrli:stringItemType","duration","This field is mandatory, If \"No\" selected in \"Compliance status\" field (Column \"G\")."]
["DisclosureWebLinkOfScheduleOfAnalystOrInstitutionalInvestorMeetAndPresentationPreparedByListedEntityForAnalystOrInstitutionalInvestorMeetIsPlaced","Disclosure web link of company at details of non compliance of Schedule of analyst or institutional investor meet and presentations made by the listed entity to analysts or institutional investors simultaneously with submission to stock exchange is placed","xbrli:stringItemType","duration"]
["AdvertisementsAsPerRegulation471","Advertisements as per regulation 47 (1)","in-capmkt-types:StatusOfCompliance","duration","1) This field is mandatory.\n2) Please select from drop down only."]
["DetailsOfNonComplianceOfAdvertisementsAsPerRegulation471","Details of non compliance of Advertisements as per regulation","xbrli:stringItemType","duration","This field is mandatory, If \"No\" selected in \"Compliance status\" field (Column \"G\")."]
["DisclosureWebLinkOfCompanyAtAdvertisementsAsPerRegulation471IsPlaced","Disclosure web link of company at details of non compliance of Advertisements as per regulation 47 is placed","xbrli:stringItemType","duration","This field is mandatory, If \"Yes\" selected in \"Compliance status\" field (Column \"G\")."]
["SeparateAuditedFinancialStatementsOfEachSubsidiaryOfTheListedEntity","Separate audited financial statements of each subsidiary of the listed entity in respect of a relevant financial year","in-capmkt-types:StatusOfCompliance","duration","1) This field is mandatory.\n2) Please select from drop down only."]
["DetailsOfNonComplianceOfSeparateAuditedFinancialStatementsOfEachSubsidiaryOfTheListedEntity","Details of non compliance of Separate audited financial statements of each subsidiary of the listed entity in respect of a relevant financial year","xbrli:stringItemType","duration","This field is mandatory, If \"No\" selected in \"Compliance status\" field (Column \"G\")."]
["DisclosureWebLinkOfCompanyAtSeparateAuditedFinancialStatementsOfEachSubsidiaryOfTheListedEntityIsPlaced","Disclosure web link of company at details of non compliance of Separate audited financial statements of each subsidiary of the listed entity in respect of a relevant financial year is placed","xbrli:stringItemType","duration","This field is mandatory, If \"Yes\" selected in \"Compliance status\" field (Column \"G\")."]
["WhetherSpecialResolutionPassed","Whether special resolution passed?","in-capmkt-types:StatusOfCompliance","duration"]
["DateOfPassingSpecialResolution","Date of passing special resolution","xbrli:dateItemType","instant","1) This is a mandatory field, if \"Yes\" selected in \"Whether special resolution passed?\".\n2) Please enter date in \"DD-MM-YYYY\" format.\n3) Enter a valid date."]
["NumberOfMemberAttendingMeetingOfCommittee","No. of members attending the meeting","xbrli:decimalItemType","instant","1) This is a mandatory field.\n2) Please enter numeric value only."]
["TotalNumberOfDirectorsAsOnDateOfTheMeeting","Total Number of Directors as on date of the meeting","xbrli:decimalItemType","instant","1) This is a mandatory field.\n2) Please enter numeric value only.\n3) Please enter less then the No. of director mentioned in Annx 1 - Comp. of BOD."]
["TotalNumberOfDirectorsAsOnDateOfTheMeeting","Total Number of Directors in the Committee as on date of the meeting","xbrli:decimalItemType","instant","1) This is a mandatory field.\n2) Please enter numeric value only.\n3) Please enter less then the No. of director mentioned in Annx 1 - Comp. of BOD."]
["WhetherTheDirectorIsDisqualified","Whether the director is disqualified?","xbrli:booleanItemType","duration","1) This is a mandatory field. \n2) Please select value from drop down list."]
["DateOfStartOfDisqualification","Start Date of disqualification","xbrli:dateItemType","duration","1) This is a mandatory field. \n2) Please enter date in DD-MM-YYYY format."]
["DateOfEndOfDisqualification","End Date of disqualification","xbrli:dateItemType","duration","1) Date should be greater than or equal to \"Start Date of disqualification\".\n2) Please enter date in DD-MM-YYYY format."]
["DetailsOfDisqualificationOfDirector","Details of disqualification","xbrli:stringItemType","duration"]
["CurrentStatusDirector","Current status","in-capmkt-types:StatusOfDisqualificationOfDirector","duration","1) This is a mandatory field. \n2) Please select value from drop down list."]
["Additional Half Yearly Disc."]
["AggregateAmountAdvancedDuringSixMonthsOfAnyLoanOrAnyOtherFormOfDebtToPromoterOrAnyOtherEntityControlledByThem","Promoter or any other entity controlled by them","xbrli:monetaryItemType","duration","1) This is mandatory field."]
["AggregateAmountAdvancedDuringSixMonthsOfAnyLoanOrAnyOtherFormOfDebtToPromoterGroupOrAnyOtherEntityControlledByThem","Promoter Group or any other entity controlled by them","xbrli:monetaryItemType","duration","1) This is mandatory field."]
["AggregateAmountAdvancedDuringSixMonthsOfAnyLoanOrAnyOtherFormOfDebtToDirectorsIncludingRelativesOrAnyOtherEntityControlledByThem","Directors (including relatives) or any other entity controlled by them","xbrli:monetaryItemType","duration","1) This is mandatory field.\n"]
["AggregateAmountAdvancedDuringSixMonthsOfAnyLoanOrAnyOtherFormOfDebtToKMPsOrAnyOtherEntityControlledByThem","KMPs  or  any  other  entity controlled by them","xbrli:monetaryItemType","duration","1) This is mandatory field.\n"]
["BalanceOutstandingAtTheEndOfSixMonthsAnyLoanOrAnyOtherFormOfDebtToPromoterOrAnyOtherEntityControlledByThem","Balance outstanding at the end of six months any loan or any other form of debt to promoter or any other entity controlled by them","xbrli:monetaryItemType","duration"]
["BalanceOutstandingAtTheEndOfSixMonthsAnyLoanOrAnyOtherFormOfDebtToPromoterGroupOrAnyOtherEntityControlledByThem","Balance outstanding at the end of six months any loan or any other form of debt to promoter group or any other entity controlled by them","xbrli:monetaryItemType","duration"]
["BalanceOutstandingAtTheEndOfSixMonthsAnyLoanOrAnyOtherFormOfDebtToDirectorsIncludingRelativesOrAnyOtherEntityControlledByThem","Balance outstanding at the end of six months any loan or any other form of debt to directors including relatives or any other entity controlled by them","xbrli:monetaryItemType","duration"]
["BalanceOutstandingAtTheEndOfSixMonthsAnyLoanOrAnyOtherFormOfDebtToKMPsOrAnyOtherEntityControlledByThem","Balance outstanding at the end of six months any loan or any other form of debt to kmps  or  any  other  entity controlled by them","xbrli:monetaryItemType","duration"]
["B -ANY Guarantee"]
["TypeOfAnyGuaranteeOrComfortLetterOfPromoterOrAnyOtherEntityControlledByThem","Type of any guarantee or comfort letter of promoter or any other entity controlled by them","xbrli:stringItemType","duration","1) This is mandatory field.\n"]
["TypeOfAnyGuaranteeOrComfortLetterOfPromoterGroupOrAnyOtherEntityControlledByThem","Type of any guarantee or comfort letter of promoter group or any other entity controlled by them","xbrli:stringItemType","duration","1) This is mandatory field.\n"]
["TypeOfAnyGuaranteeOrComfortLetterOfDirectorsIncludingRelativesOrAnyOtherEntityControlledByThem","Type of any guarantee or comfort letter of directors including relatives or any other entity controlled by them","xbrli:stringItemType","duration","1) This is mandatory field.\n"]
["TypeOfAnyGuaranteeOrComfortLetterOfKMPsOrAnyOtherEntityControlledByThem","Type of any guarantee or comfort letter of kmps  or  any  other  entity controlled by them","xbrli:stringItemType","duration","1) This is mandatory field.\n"]
["AggregateAmountOfIssuanceDuringSixMonthsOfAnyGuaranteeOrComfortToPromoterOrAnyOtherEntityControlledByThem","Aggregate amount of issuance during six months of any guarantee or comfort to promoter or any other entity controlled by them","xbrli:monetaryItemType","duration","1) This is mandatory field.\n"]
["AggregateAmountOfIssuanceDuringSixMonthsOfAnyGuaranteeOrComfortToPromoterGroupOrAnyOtherEntityControlledByThem","Aggregate amount of issuance during six months of any guarantee or comfort to promoter group or any other entity controlled by them","xbrli:monetaryItemType","duration","1) This is mandatory field.\n"]
["AggregateAmountOfIssuanceDuringSixMonthsOfAnyGuaranteeOrComfortToDirectorsIncludingRelativesOrAnyOtherEntityControlledByThem","Aggregate amount of issuance during six months of any guarantee or comfort to directors including relatives or any other entity controlled by them","xbrli:monetaryItemType","duration","1) This is mandatory field.\n"]
["AggregateAmountOfIssuanceDuringSixMonthsOfAnyGuaranteeOrComfortToKMPsOrAnyOtherEntityControlledByThem","Aggregate amount of issuance during six months of any guarantee or comfort to kmps or  any  other  entity controlled by them","xbrli:monetaryItemType","duration","1) This is mandatory field.\n"]
["BalanceOutstandingAtTheEndOfSixMonthsOfAnyGuaranteeOrComfortToPromoterOrAnyOtherEntityControlledByThem","Balance outstanding  at the end of six months of any guarantee or comfort to promoter or any other entity controlled by them","xbrli:monetaryItemType","duration"]
["BalanceOutstandingAtTheEndOfSixMonthsOfAnyGuaranteeOrComfortToPromoterGroupOrAnyOtherEntityControlledByThem","Balance outstanding  at the end of six months of any guarantee or comfort to promoter group or any other entity controlled by them","xbrli:monetaryItemType","duration"]
["BalanceOutstandingAtTheEndOfSixMonthsOfAnyGuaranteeOrComfortToDirectorsIncludingRelativesOrAnyOtherEntityControlledByThem","Balance outstanding  at the end of six months of any guarantee or comfort to directors including relatives or any other entity controlled by them","xbrli:monetaryItemType","duration"]
["BalanceOutstandingAtTheEndOfSixMonthsOfAnyGuaranteeOrComfortToKMPsOrAnyOtherEntityControlledByThem","Balance outstanding  at the end of six months of any guarantee or comfort to kmps or  any  other  entity controlled by them","xbrli:monetaryItemType","duration"]
["TypeOfSecurityOfPromoterOrAnyOtherEntityControlledByThem","Type of security of promoter or any other entity controlled by them","xbrli:stringItemType","duration"]
["TypeOfSecurityOfPromoterGroupOrAnyOtherEntityControlledByThem","Type of security of promoter group or any other entity controlled by them","xbrli:stringItemType","duration"]
["TypeOfSecurityOfDirectorsIncludingRelativesOrAnyOtherEntityControlledByThem","TypeOfSecurityOfDirectorsIncludingRelativesOrAnyOtherEntityControlledByThem","xbrli:stringItemType","duration"]
["TypeOfSecurityOfKMPsOrAnyOtherEntityControlledByThem","Type of security of kmps  or  any  other  entity controlled by them","xbrli:stringItemType","duration"]
["AggregateValueOfSecurityProvidedDuringSixMonthsOfSecurityInConnectionWithLoanOrAnyOtherDebtAvailByPromoterOrAnyOtherEntityControlledByThem","Aggregate value of security provided during six months of security in connection with loan or any other debt avail by promoter  or  any other entity controlled by them","xbrli:monetaryItemType","duration"]
["AggregateValueOfSecurityProvidedDuringSixMonthsOfSecurityInConnectionWithLoanOrAnyOtherDebtAvailByPromoterGroupOrAnyOtherEntityControlledByThem","Aggregate value of security provided during six months of security in connection with loan or any other debt avail by promoter group or any   other   entity controlled by them","xbrli:monetaryItemType","duration"]
["AggregateValueOfSecurityProvidedDuringSixMonthsOfSecurityInConnectionWithLoanOrAnyOtherDebtAvailByDirectorsIncludingRelativesOrAnyOtherEntityControlledByThem","Aggregate value of security provided during six months of security in connection with loan or any other debt avail by directors including relatives or any other entity controlled by them","xbrli:monetaryItemType","duration"]
["AggregateValueOfSecurityProvidedDuringSixMonthsOfSecurityInConnectionWithLoanOrAnyOtherDebtAvailByKMPsOrAnyOtherEntityControlledByThem","Aggregate value of security provided during six months of security in connection with loan or any other debt avail by kmps or any other entity controlled by them","xbrli:monetaryItemType","duration"]
["BalanceOutstandingAtTheEndOfSixMonthsOfSecurityInConnectionWithLoanOrAnyOtherDebtAvailByPromoterOrAnyOtherEntityControlledByThem","Balance outstanding at the end of six months of security in connection with loan or any other debt avail by promoter  or  any other entity controlled by them","xbrli:monetaryItemType","duration"]
["BalanceOutstandingAtTheEndOfSixMonthsOfSecurityInConnectionWithLoanOrAnyOtherDebtAvailByPromoterGroupOrAnyOtherEntityControlledByThem","Balance outstanding at the end of six months of security in connection with loan or any other debt avail by promoter group or any   other   entity controlled by them","xbrli:monetaryItemType","duration"]
["BalanceOutstandingAtTheEndOfSixMonthsOfSecurityInConnectionWithLoanOrAnyOtherDebtAvailByDirectorsIncludingRelativesOrAnyOtherEntityControlledByThem","Balance outstanding at the end of six months of security in connection with loan or any other debt avail by directors including relatives or any other entity controlled by them","xbrli:monetaryItemType","duration"]
["BalanceOutstandingAtTheEndOfSixMonthsOfSecurityInConnectionWithLoanOrAnyOtherDebtAvailByKMPsOrAnyOtherEntityControlledByThem","Balance outstanding at the end of six months of security in connection with loan or any other debt avail by kmps or any other entity controlled by them","xbrli:monetaryItemType","duration"]
["AdditionalInformationOfLoansOrGuaranteesOrComfortLettersOrSecuritiesExplanatoryTextBlock","A1","nonnum:textBlockItemType","duration"]
["Additional "]
["ComplianceStatus","Compliance status","xbrli:booleanItemType","duration","(1) This is a mandatory field. \n(2) Value must be \"Yes\", \"No\" \n(3) Select value from drop down list."]
["CompanyRemarks","A2","nonnum:textBlockItemType","duration"]
["AdditionalDisclosureNameOfSignatory","Additional disclosure name of signatory","xbrli:stringItemType","duration","1) This is mandatory field."]
["AdditionalDisclosureDesignation","Additional disclosure designation","in-capmkt-types:DesignationOfAffirmationOfAdditionalDisclosure","duration","1) This is mandatory field."]
["AdditionalDisclosurePlace","Additional disclosure place","xbrli:stringItemType","duration","1) This is mandatory field."]
["AdditionalDisclosureDate","Additional disclosure date","xbrli:dateItemType","instant","1) This is mandatory field.\n2) Please enter date in 'DD-MM-YYYY' format\n3) Please enter date which is greather than or equal to Date of Quarter Ending and less than or equal to current date"]
["Cyber Incidents or Loss of data"]
["WhetherAsPerSubRegulation2baOfRegulation27OfSEBILODRThereHasBeenCyberSecurityIncidentsDuringTheQuarter","Whether as per Regulation 27(2)(ba) of SEBI (LODR) Regulations, 2015 there has been cyber security incidents or breaches or loss of data or documents during the quarter","xbrli:booleanItemType","duration","1) This field is mandatory.\n2) Please select from drop down only."]
["Additional "]
["SubmissionOfAnnualSecretarialComplianceReport","Submission of Annual Secretarial Compliance Report","in-capmkt-types:StatusOfCompliance","duration","1) This field is mandatory.\n2) Please select from drop down only."]
["DisclosureOfTheSecretarialAuditReportOfTheListedEntityAndTheMaterialSubsidiariesInTheAnnualReport","Disclosure of the Secretarial Audit Report of the listed entity and the material subsidiaries in the Annual Report","in-capmkt-types:StatusOfCompliance","duration","1) This field is mandatory.\n2) Please select from drop down only."]
["DetailsOfNonComplianceOfDisclosureOfTheSecretarialAuditReportOfTheListedEntityAndTheMaterialSubsidiariesInTheAnnualReport","Details of non compliance of Disclosure of the Secretarial Audit Report of the listed entity and the material subsidiaries in the Annual ReportPresence of Chairperson of the Stakeholder Relationship committee at the annual general meeting","xbrli:stringItemType","duration","This field is mandatory, If \"No\" selected in \"Compliance status\" field (Column \"H\")."]
["DetailsOfNonComplianceOfSubmissionOfAnnualSecretarialComplianceReport","Details of non compliance of Submission of Annual Secretarial Compliance Report","xbrli:stringItemType","duration","This field is mandatory, If \"No\" selected in \"Compliance status\" field (Column \"H\")."]
["Additional "]
["DetailsOfNonComplianceOfAudioOrVideoRecordingsAndTranscriptsOfPostEariningsOrQuarterlyCalls","Details of non compliance of Audio or video recordings and transcripts of post earnings/quarterly calls","xbrli:stringItemType","duration","This field is mandatory, If \"No\" selected in \"Compliance status\" field (Column \"G\")."]
["DetailsOfNonComplianceOfSecretarialComplianceReport","Details of non compliance of Secretarial Compliance Report","xbrli:stringItemType","duration","This field is mandatory, If \"No\" selected in \"Compliance status\" field (Column \"G\")."]
["DetailsOfNonComplianceOfMaterialityPolicyAsPerSubRegulation4Regulation30","Details of non compliance of Materiality Policy as per Regulation 30 (4)","xbrli:stringItemType","duration","This field is mandatory, If \"No\" selected in \"Compliance status\" field (Column \"G\")."]
["DetailsOfNonComplianceOfDisclosureOfContactDetailsOfKMPWhoAreAuthorizedForThePurposeOfDeterminingMaterialityUnderSubRegulation5OfRegulation30","Details of non compliance of Disclosure of contact details of KMP who are authorized for the purpose of determining materiality as required under regulation 30(5)","xbrli:stringItemType","duration","This field is mandatory, If \"No\" selected in \"Compliance status\" field (Column \"G\")."]
["DetailsOfNonComplianceOfDisclosuresUnderSubRegulation8OfRegulation30","Details of non compliance of Disclosures under regulation 30(8)","xbrli:stringItemType","duration","This field is mandatory, If \"No\" selected in \"Compliance status\" field (Column \"G\")."]
["DetailsOfNonComplianceOfStatementsOfDeviationsOrVariationsAsSpecifiedInRegulation32","Details of non compliance of Statements of deviation(s) or variations(s) as specified in regulation 32","xbrli:stringItemType","duration","This field is mandatory, If \"No\" selected in \"Compliance status\" field (Column \"G\")."]
["DetailsOfNonComplianceOfDividendDistributionPolicyAsPerRegulation43A1","Details of non compliance of Dividend Distribution policy as per Regulation 43A(1)","xbrli:stringItemType","duration","This field is mandatory, If \"No\" selected in \"Compliance status\" field (Column \"G\")."]
["DetailsOfNonComplianceOfAnnualReturnAsProvidedUnderSection92OfTheCompaniesAct2013","Details of non compliance of Annual return as provided under section 92 of the Companies Act, 2013","xbrli:stringItemType","duration","This field is mandatory, If \"No\" selected in \"Compliance status\" field (Column \"G\")."]
["DetailsOfNonComplianceOfConfirmationThatTheDisclosuresAreInASeparateSectionAsSpecifiedInSubRegulation2OfRegulation46","Details of non compliance of Confirmation that the above disclosures are in a separate section as specified in regulation 46(2)","xbrli:stringItemType","duration","This field is mandatory, If \"No\" selected in \"Compliance status\" field (Column \"G\")."]
["DetailsOfNonComplianceOfComplianceWithSubRegulation3OfRegulation46WithRespectToAccuracyOfDisclosuresOnTheWebsiteAndTimelyUpdation","Details of non compliance of Compliance with regulation 46(3) with respect to accuracy of disclosures on the website and timely updating","xbrli:stringItemType","duration","This field is mandatory, If \"No\" selected in \"Compliance status\" field (Column \"G\")."]
["DisclosureWebLinkOfScheduleOfAnalystOrInstitutionalInvestorMeetAndPresentationPreparedByListedEntityForAnalystOrInstitutionalInvestorMeetIsPlaced","Disclosure web link of company at which details of Schedule of analyst or institutional investor meet and presentations made by the listed entity to analysts or institutional investors simultaneously with submission to stock exchange","xbrli:stringItemType","duration","This field is mandatory, If \"Yes\" selected in \"Compliance status\" field (Column \"G\")."]
["DisclosureWebLinkOfSecretarialComplianceReportIsPlaced","Disclosure web link of company at details of non compliance of Secretarial Compliance Report","xbrli:stringItemType","duration","This field is mandatory, If \"Yes\" selected in \"Compliance status\" field (Column \"G\")."]
["DisclosureWebLinkOfCompanyAtMaterialityPolicyAsPerSubRegulation4Regulation30IsPlaced","Disclosure web link of company at details of non compliance of Materiality Policy as per Regulation 30 (4)","xbrli:stringItemType","duration","This field is mandatory, If \"Yes\" selected in \"Compliance status\" field (Column \"G\")."]
["DisclosureWebLinkOfDisclosureOfContactDetailsOfKMPWhoAreAuthorizedForThePurposeOfDeterminingMaterialityUnderSubRegulation5OfRegulation30IsPlaced","Disclosure web link of company at details of non compliance of Disclosure of contact details of KMP who are authorized for the purpose of determining materiality as required under regulation 30(5)","xbrli:stringItemType","duration","This field is mandatory, If \"Yes\" selected in \"Compliance status\" field (Column \"G\")."]
["DisclosureWebLinkOfDisclosuresUnderSubRegulation8OfRegulation30IsPlaced","Disclosure web link of company at details of non compliance of Disclosures under regulation 30(8)","xbrli:stringItemType","duration","This field is mandatory, If \"Yes\" selected in \"Compliance status\" field (Column \"G\")."]
["DisclosureWebLinkOfStatementsOfDeviationsOrVariationsAsSpecifiedInRegulation32IsPlaced","Disclosure web link of company at details of non compliance of Statements of deviation(s) or variations(s) as specified in regulation 32","xbrli:stringItemType","duration","This field is mandatory, If \"Yes\" selected in \"Compliance status\" field (Column \"G\")."]
["DisclosureWebLinkOfCompanyAtDividendDistributionPolicyAsPerRegulation43A1IsPlaced","Disclosure web link of company at details of non compliance of Dividend Distribution policy as per Regulation 43A(1)","xbrli:stringItemType","duration","This field is mandatory, If \"Yes\" selected in \"Compliance status\" field (Column \"G\")."]
["DisclosureWebLinkOfAnnualReturnAsProvidedUnderSection92OfTheCompaniesAct2013IsPlaced","Disclosure web link of company at details of non compliance of Annual return as provided under section 92 of the Companies Act, 2013","xbrli:stringItemType","duration","This field is mandatory, If \"Yes\" selected in \"Compliance status\" field (Column \"G\")."]
["DisclosureWebLinkOfConfirmationThatTheDisclosuresAreInASeparateSectionAsSpecifiedInSubRegulation2OfRegulation46IsPlaced","Disclosure web link of company at details of non compliance of Confirmation that the above disclosures are in a separate section as specified in regulation 46(2)","xbrli:stringItemType","duration","This field is mandatory, If \"Yes\" selected in \"Compliance status\" field (Column \"G\")."]
["DisclosureWebLinkOfComplianceWithSubRegulation3OfRegulation46WithRespectToAccuracyOfDisclosuresOnTheWebsiteAndTimelyUpdationIsPlaced","Disclosure web link of company at details of non compliance of Compliance with regulation 46(3) with respect to accuracy of disclosures on the website and timely updating","xbrli:stringItemType","duration","This field is mandatory, If \"Yes\" selected in \"Compliance status\" field (Column \"G\")."]
["DisclosureWebLinkOfAudioOrVideoRecordingsAndTranscriptsOfPostEariningsOrQuarterlyCallsIsPlaced","Disclosure web link of company at which details of Audio or video recordings and transcripts of post earnings/quarterly calls","xbrli:stringItemType","duration","This field is mandatory, If \"Yes\" selected in \"Compliance status\" field (Column \"G\")."]
["Additional annx2 annual affirmations"]
["GapBetweenTheMeetingsOfTheRiskManagementCommittee","Gap between the meetings of the Risk Management Committee","in-capmkt-types:StatusOfCompliance","duration","1) This field is mandatory.\n2) Please select from drop down only."]
["VigilMechanism","Vigil Mechanism","in-capmkt-types:StatusOfCompliance","duration","1) This field is mandatory.\n2) Please select from drop down only."]
["PolicyForRelatedPartyTransaction","Policy for related party Transaction","in-capmkt-types:StatusOfCompliance","duration","1) This field is mandatory.\n2) Please select from drop down only."]
["PriorOrOmnibusApprovalOfAuditCommitteeForAllRelatedPartyTransactions","Prior or Omnibus approval of Audit Committee for all related party transactions","in-capmkt-types:StatusOfCompliance","duration","1) This field is mandatory.\n2) Please select from drop down only."]
["CompositionOfBoardOfDirectorsOfUnlistedMaterialSubsidiary","Composition of Board of Directors of unlisted material Subsidiary","in-capmkt-types:StatusOfCompliance","duration","1) This field is mandatory.\n2) Please select from drop down only."]
["OtherCorporateGovernanceRequirementsWithRespectToSubsidiaryOfListedEntity","Other Corporate Governance requirements with respect to subsidiary of listed entity","in-capmkt-types:StatusOfCompliance","duration","1) This field is mandatory.\n2) Please select from drop down only."]
["DirectorsAndOfficersInsurance","Directors and Officers insurance","in-capmkt-types:StatusOfCompliance","duration","1) This field is mandatory.\n2) Please select from drop down only."]
["DetailsOfNonComplianceOfRoleOfAuditCommitteeAndInformationToBeReviewedByTheAuditCommittee","Details of non compliance of Role of Audit Committee and information to be reviewed by the audit committee","xbrli:stringItemType","duration","This field is mandatory, If \"No\" selected in \"Compliance status\" field (Column \"H\")."]
["DetailsOfNonComplianceOfRoleOfNominationAndRemunerationCommittee","Details of non compliance of Role of Nomination and Remuneration Committee","xbrli:stringItemType","duration","This field is mandatory, If \"No\" selected in \"Compliance status\" field (Column \"H\")."]
["DetailsOfNonComplianceOfCompositionOfStakeholderRelationshipCommittee","Details of non compliance of Composition of Stakeholder Relationship Committee","xbrli:stringItemType","duration","This field is mandatory, If \"No\" selected in \"Compliance status\" field (Column \"H\")."]
["DetailsOfNonComplianceOfRoleOfStakeholdersRelationshipCommittee","Details of non compliance of Role of Stakeholders Relationship Committee","xbrli:stringItemType","duration","This field is mandatory, If \"No\" selected in \"Compliance status\" field (Column \"H\")."]
["DetailsOfNonComplianceOfQuorumOfRiskManagementCommitteemeeting","Details of non compliance of Quorum of Risk Management Committee meeting","xbrli:stringItemType","duration","This field is mandatory, If \"No\" selected in \"Compliance status\" field (Column \"H\")."]
["DetailsOfNonComplianceOfGapBetweenTheMeetingsOfTheRiskManagementCommittee","Details of non compliance of Gap between the meetings of the Risk Management Committee","xbrli:stringItemType","duration","This field is mandatory, If \"No\" selected in \"Compliance status\" field (Column \"H\")."]
["DetailsOfNonComplianceOfVigilMechanism","Details of non compliance of Vigil Mechanism","xbrli:stringItemType","duration","This field is mandatory, If \"No\" selected in \"Compliance status\" field (Column \"H\")."]
["DetailsOfNonComplianceOfPolicyForRelatedPartyTransaction","Details of non compliance of Policy for related party Transaction","xbrli:stringItemType","duration","This field is mandatory, If \"No\" selected in \"Compliance status\" field (Column \"H\")."]
["DetailsOfNonComplianceOfPriorOrOmnibusApprovalOfAuditCommitteeForAllRelatedPartyTransactions","Details of non compliance of Prior or Omnibus approval of Audit Committee for all related party transactions","xbrli:stringItemType","duration","This field is mandatory, If \"No\" selected in \"Compliance status\" field (Column \"H\")."]
["DetailsOfNonComplianceOfCompositionOfBoardOfDirectorsOfUnlistedMaterialSubsidiary","Details of non compliance of Composition of Board of Directors of unlisted material Subsidiary","xbrli:stringItemType","duration","This field is mandatory, If \"No\" selected in \"Compliance status\" field (Column \"H\")."]
["DetailsOfNonComplianceOfOtherCorporateGovernanceRequirementsWithRespectToSubsidiaryOfListedEntity","Details of non compliance of Other Corporate Governance requirements with respect to subsidiary of listed entity","xbrli:stringItemType","duration","This field is mandatory, If \"No\" selected in \"Compliance status\" field (Column \"H\")."]
["DetailsOfNonComplianceOfMaximumDirectorshipAndTenure","Details of non compliance of Maximum  Tenure","xbrli:stringItemType","duration","This field is mandatory, If \"No\" selected in \"Compliance status\" field (Column \"H\")."]
["DetailsOfNonComplianceOfAppointmentReAppointmentOrRemovalOfAnIndependentDirectorThroughSpecialResolutionOrTheAlternateMechanism","Details of non compliance of Appointment, Re-appointment or removal of an Independent Director through special resolution or the alternate mechanism","xbrli:stringItemType","duration","This field is mandatory, If \"No\" selected in \"Compliance status\" field (Column \"H\")."]
["DetailsOfNonComplianceOfMeetingOfIndependentDirectors","Details of non compliance of Meeting of independent directors","xbrli:stringItemType","duration","This field is mandatory, If \"No\" selected in \"Compliance status\" field (Column \"H\")."]
["DetailsOfNonComplianceOfFamiliarizationOfIndependentDirectors","Details of non compliance of Familiarization of independent directors","xbrli:stringItemType","duration","This field is mandatory, If \"No\" selected in \"Compliance status\" field (Column \"H\")."]
["DetailsOfNonComplianceOfDeclarationFromIndependentDirector","Details of non compliance of Declaration from Independent Director","xbrli:stringItemType","duration","This field is mandatory, If \"No\" selected in \"Compliance status\" field (Column \"H\")."]
["DetailsOfNonComplianceOfDirectorsAndOfficersInsurance","Details of non compliance of Directors and Officers insurance","xbrli:stringItemType","duration","This field is mandatory, If \"No\" selected in \"Compliance status\" field (Column \"H\")."]
["DetailsOfNonComplianceOfConfirmationWithRespectToAppointmentOfIndependentDirectorsWhoResignedFromTheListedEntity","Details of non compliance of Confirmation with respect to appointment of Independent Directors who resigned from the listed entity","xbrli:stringItemType","duration","This field is mandatory, If \"No\" selected in \"Compliance status\" field (Column \"H\")."]
["DetailsOfNonComplianceOfMembershipsInCommittees","Details of non compliance of Memberships in Committees","xbrli:stringItemType","duration","This field is mandatory, If \"No\" selected in \"Compliance status\" field (Column \"H\")."]
["DetailsOfNonComplianceOfAffirmationWithComplianceToCodeOfConductFromMembersOfBoardOfDirectorsAndSeniorManagementPersonnel","Details of non compliance of Affirmation with compliance to code of conduct from members of Board of Directors and Senior management personnel","xbrli:stringItemType","duration","This field is mandatory, If \"No\" selected in \"Compliance status\" field (Column \"H\")."]
["DetailsOfNonComplianceOfPolicyWithRespectToObligationsOfDirectorsAndSeniorManagement","Details of non compliance of Policy with respect to Obligations of directors and senior management","xbrli:stringItemType","duration","This field is mandatory, If \"No\" selected in \"Compliance status\" field (Column \"H\")."]
["DetailsOfNonComplianceOfApprovalOfTheBoardAndShareholdersForCompensationOrProfitSharing","Details of non compliance of Approval of the Board and shareholders for compensation or profit sharing in connection with dealings in the securities of the listed entity","xbrli:stringItemType","duration","This field is mandatory, If \"No\" selected in \"Compliance status\" field (Column \"H\")."]
["DetailsOfNonComplianceOfVacanciesInRespectKeyManagerialPersonnel","Details of non compliance of Vacancies in respect Key Managerial Personnel","xbrli:stringItemType","duration","This field is mandatory, If \"No\" selected in \"Compliance status\" field (Column \"H\")."]
["ReasonForCessation","Reason for Cessation","xbrli:stringItemType","duration","1) This field is mandatory If Date entered in \"Date of Cessation\".\n2) Please select from dropdown only."]
["OtherDetailsOfCyberSecurityIncidenceOrBreachesOrLossOfDataEventTextBlock","Other details of cyber security incidence or breaches or loss of data event","nonnum:textBlockItemType","duration","This field is mandatory, If \"No\" selected in \"Whether as per Regulation 27(2)(ba) of SEBI (LODR) Regulations, 2015 there has been cyber security incidents or breaches or loss of data or documents during the quarter\" field."]
["NumberOfCyberSecurityIncidenceOrBreachesOrLossOfDataEventOccurredDuringTheQuarter","Number of cyber security incidence or breaches or loss of data event occurred during the quarter","xbrli:integerItemType","instant","1) This field is mandatory, If \"Yes\" selected in \"Whether as per Regulation 27(2)(ba) of SEBI (LODR) Regulations, 2015 there has been cyber security incidents or breaches or loss of data or documents during the quarter\".\n2) Only Numeric value allowed.\n3) Number entered should be greater than or equal to one."]
["DateOfCyberSecurityIncidenceOrBreachesOrLossOfDataEvent","Date of the event","xbrli:dateItemType","duration","1)Please Enter date in \"DD-MM-YYYY\" format.\n2) Please enter valid date. \n3) Date should be after 14th July, 2023. \n4) Future date not allowed. "]
["BriefDetailsOfCyberSecurityIncidenceOrBreachesOrLossOfDataEvent","Brief details of the event","xbrli:stringItemType","duration","This field is mandatory."]
["Integrated Governance"]
["IsSCORESIDAvailable","Is SCORE ID Available ?","xbrli:booleanItemType","instant","1) This is a mandatory field, if \"Yes\" selected in \"Whether Annexure I (Part B) Investor Grievance Redressal Report is Applicable to the entity?\".\n2) Please select from dropdown only."]
["SCORESRegistrationID","SCORE Registration ID","xbrli:stringItemType","instant","This is a mandatory field, if \"Yes\" selected in \"Is SCORE ID Available ?\""]
["ReasonForNonavailableSCOREID","Reason For No SCORE ID","xbrli:stringItemType","instant","This is a mandatory field, if \"No\" selected in \"Is SCORE ID Available ?\""]
["NoOfInvestorComplaints","No. of investor complaints pending at the beginning of Quarter","xbrli:integerItemType","instant","1) This is mandatory field.\n2) Number of investor complaints can not be negative or fraction."]
["NoOfInvestorComplaintsReceivedDuringThePeriod","No. of investor complaints received during the Quarter","xbrli:integerItemType","duration","1) This is mandatory field.\n2) Number of investor complaints Received during the period can not be negative or fraction."]
["NoOfInvestorComplaintsDisposedOffDuringThePeriod","No. of investor complaints disposed off during the Quarter","xbrli:integerItemType","duration","1) This is mandatory field.\n2) Number of investor complaints disposed off during the quarter cannot be negative,fraction or greater than sum of complaints at the beginnig of quarter and recieved during the quarter."]
["NoOfInvestorComplaints","No. of investor complaints those remaining unresolved at the end of the Quarter","xbrli:integerItemType","instant","It should be greater than or Equal to Zero."]
["NoOfInvestorComplaintsDuringThePeriod","No of investor complaints during the period","xbrli:integerItemType","duration"]
["TypeOfSubmission","Type of Submission","in-capmkt-types:SubmissionType","instant","1) This is a mandatory field.\n2) Please select value from drop down."]
["AnyOtherInformationForDisclosureOfAcquisitionOfSharesOrVotingRightsInUnlistedCompaniesExplanatoryTextBlock",null,"nonnum:textBlockItemType","duration"]
["NameOfTheUnlistedCompanyInWhichSharesOrVotingRightsHaveBeenAcquired","Name of the unlisted company in which shares or voting rights have been acquired","xbrli:stringItemType","instant","This field is mandatory."]
["DateOfAcquisition","Date of acquisition","xbrli:dateItemType","instant","1) This field is mandatory.\n2) Enter date in \"DD-MM-YYYY\" format.\n3) Enter a valid Date."]
["PercentageOfAggregateHoldingOfSharesOrVotingRights","Aggregate holding (% shares or voting rights) as at the end of the previous quarter","num:percentItemType","instant","1) This field is mandatory.\n2) Upto two decimal value allowed.\n3) Maximum 100% allowed."]
["PercentageOfSharesOrVotingRightsAcquiredDuringTheQuarter","% shares or voting rights acquired during the quarter","num:percentItemType","duration","1) This field is mandatory.\n2) Upto two decimal value allowed.\n3) Value should be allowed within the range of -100% to +100%"]
["PercentageOfAggregateHoldingOfSharesOrVotingRights","Aggregate holding (% shares or voting rights) as at the end of the quarter","num:percentItemType","instant","1) This field is mandatory.\n2) Upto two decimal value allowed."]
["AnyOtherInformationForDisclosureOfImpositionOfFineOrPenaltyExplanatoryTextBlock",null,"nonnum:textBlockItemType","duration"]
["NameOfTheAuthority","Name of the authority","xbrli:stringItemType","instant","This field is mandatory."]
["NatureAndDetailsOfTheActionTakenOrOrderPassed","Nature and details of the action(s) taken or order(s) passed","xbrli:stringItemType","instant","This field is mandatory."]
["DateOfReceiptOfDirectionOrOrderIncludingAnyAdInterimOrInterimOrdersOrAnyOtherCommunicationFromTheAuthority","Date of receipt of direction or order, including any ad interim or interim orders, or any other communication from the authority","xbrli:dateItemType","instant","1) This field is mandatory.\n2) Enter date in \"DD-MM-YYYY\" format.\n3) Enter a valid Date."]
["DetailsOfTheViolationOrContraventionCommittedOrAllegedToBeCommitted","Details of the violation(s)/ contravention(s) committed or alleged to be committed","xbrli:stringItemType","instant","This field is mandatory."]
["ImpactOnFinancialOrOperationOrOtherActivitiesOfTheListedEntityQuantifiableInMonetaryTermsToTheExtentPossible","Impact on financial, operation or other activities of the listed entity, quantifiable in monetary terms to the extent possible","xbrli:stringItemType","instant","This field is mandatory."]
["AnyOtherInformationForDisclosureOfUpdatesToOngoingTaxLitigationsOrDisputesExplanatoryTextBlock",null,"nonnum:textBlockItemType","duration"]
["NameOfTheOpposingParty","Name of the opposing party","xbrli:stringItemType","instant","This field is mandatory."]
["DateOfInitiationOfTheLitigationDispute","Date of initiation of the litigation / dispute","xbrli:dateItemType","instant","1) This field is mandatory.\n2) Enter date in \"DD-MM-YYYY\" format.\n3) Enter a valid Date."]
["StatusOfTheLitigationDisputeAsPerLastDisclosure","Status of the litigation / dispute as per last disclosure","xbrli:stringItemType","instant","This field is mandatory."]
["CurrentStatusOfTheLitigationOrDispute","Current status of the litigation / dispute","xbrli:stringItemType","instant","This field is mandatory."]
["WhetherPartAOfAnnexureIOfTheSEBICircularDated31December2024RelatedToComplianceReportOnCorporateGovernanceIsApplicableToTheEntity","Whether Annexure I (Part A) of the SEBI Circular dated December 31, 2024 related to Compliance Report on Corporate Governance is applicable to the entity?","xbrli:booleanItemType","duration","1) This field is mandatory.\n2) Please select from dropdown only."]
["WhetherPartBOfAnnexureIOfTheSEBICircularDated31December2024RelatedToInvestorGrievanceRedressalReportIsApplicableToTheEntity","Whether Annexure I (Part B) of the SEBI Circular dated December 31, 2024 related to Investor Grievance Redressal Report is Applicable to the entity?","xbrli:booleanItemType","duration","1) This field is mandatory.\n2) Please select from dropdown only."]
["WhetherPartCOfAnnexureIOfTheSEBICircularDated31December2024RelatedToDisclosureOfAcquisitionOfSharesOrVotingRightsInUnlistedCompaniesIsApplicableToTheEntity","Whether Annexure I (Part C) of the SEBI Circular dated December 31, 2024 related to Disclosure of Acquisition of Shares or Voting Rights in Unlisted Companies is Applicable to the entity?","xbrli:booleanItemType","duration","1) This field is mandatory.\n2) Please select from dropdown only."]
["WhetherPartDOfAnnexureIOfTheSEBICircularDated31December2024RelatedToDisclosureOfImpositionOfFineOrPenaltyIsApplicableToTheEntity","Whether Annexure I (Part D) of the SEBI Circular dated December 31, 2024 related to Disclosure of Imposition of Fine or Penalty is Applicable to the entity?","xbrli:booleanItemType","duration","1) This field is mandatory.\n2) Please select from dropdown only."]
["WhetherPartEOfAnnexureIOfTheSEBICircularDated31December2024RelatedToDisclosureOfUpdatesToOngoingTaxLitigationsOrDisputesIsApplicableToTheEntity","Whether Annexure I (Part E) of the SEBI Circular dated December 31, 2024 related to Disclosure of Updates to Ongoing Tax Litigations or Disputes is Applicable to the entity?","xbrli:booleanItemType","duration","1) This field is mandatory.\n2) Please select from dropdown only."]
["WhetherPartFOfAnnexureIOfTheSEBICircularDated31December2024RelatedToDisclosureOfLoansOrGuaranteesOrComfortLettersOrSecuritiesEtcIsApplicableToTheEntity","Whether Annexure I (Part F) of the SEBI Circular dated December 31, 2024 related to Disclosure Of Loans / Guarantees / Comfort Letters / Securities Etc. is Applicable to the entity?","xbrli:booleanItemType","duration","1) This field is mandatory.\n2) Please select from dropdown only."]
["ReasonForPartAOfAnnexureIOfTheSEBICircularDated31December2024RelatedToComplianceReportOnCorporateGovernanceIsNotApplicableToTheEntity","Notes for Whether Annexure I (Part A) of the SEBI Circular dated December 31, 2024 related to Compliance Report on Corporate Governance is applicable to the entity?","xbrli:stringItemType","duration","This field is mandatory, if \"No\" selected in \"Whether Annexure I (Part A) of the SEBI Circular dated December 31, 2024 related to Compliance Report on Corporate Governance is applicable to the entity?\"."]
["ReasonForPartBOfAnnexureIOfTheSEBICircularDated31December2024RelatedToInvestorGrievanceRedressalReportIsNotApplicableToTheEntity","Notes for Whether Annexure I (Part B) of the SEBI Circular dated December 31, 2024 related to Investor Grievance Redressal Report is Applicable to the entity?","xbrli:stringItemType","duration","This field is mandatory, if \"No\" selected in \"Whether Annexure I (Part B) of the SEBI Circular dated December 31, 2024 related to Investor Grievance Redressal Report is Applicable to the entity?\"."]
["ReasonForPartCOfAnnexureIOfTheSEBICircularDated31December2024RelatedToDisclosureOfAcquisitionOfSharesOrVotingRightsInUnlistedCompaniesIsNotApplicableToTheEntity","Notes for Whether Annexure I (Part C) of the SEBI Circular dated December 31, 2024 related to Disclosure of Acquisition of Shares or Voting Rights in Unlisted Companies is Applicable to the entity?","xbrli:stringItemType","duration","This field is mandatory, if \"No\" selected in \"Whether Annexure I (Part C) of the SEBI Circular dated December 31, 2024 related to Disclosure of Acquisition of Shares or Voting Rights in Unlisted Companies is Applicable to the entity?\"."]
["ReasonForPartDOfAnnexureIOfTheSEBICircularDated31December2024RelatedToDisclosureOfImpositionOfFineOrPenaltyIsNotApplicableToTheEntity","Notes for Whether Annexure I (Part D) of the SEBI Circular dated December 31, 2024 related to Disclosure of Imposition of Fine or Penalty is Applicable to the entity?","xbrli:stringItemType","duration","This field is mandatory, if \"No\" selected in \"Whether Annexure I (Part D) of the SEBI Circular dated December 31, 2024 related to Disclosure of Imposition of Fine or Penalty is Applicable to the entity?\"."]
["ReasonForPartEOfAnnexureIOfTheSEBICircularDated31December2024RelatedToDisclosureOfUpdatesToOngoingTaxLitigationsOrDisputesIsNotApplicableToTheEntity","Notes for Whether Annexure I (Part E) of the SEBI Circular dated December 31, 2024 related to Disclosure of Updates to Ongoing Tax Litigations or Disputes is Applicable to the entity?","xbrli:stringItemType","duration","This field is mandatory, if \"No\" selected in \"Whether Annexure I (Part E) of the SEBI Circular dated December 31, 2024 related to Disclosure of Updates to Ongoing Tax Litigations or Disputes is Applicable to the entity?\"."]
["ReasonForPartFOfAnnexureIOfTheSEBICircularDated31December2024RelatedToDisclosureOfLoansOrGuaranteesOrComfortLettersOrSecuritiesEtcIsNotApplicableToTheEntity","Notes for Whether Annexure I (Part F) of the SEBI Circular dated December 31, 2024 related to Disclosure Of Loans / Guarantees / Comfort Letters / Securities Etc. is Applicable to the entity?","xbrli:stringItemType","duration","This field is mandatory, if \"No\" selected in \"Whether Annexure I (Part F) of the SEBI Circular dated December 31, 2024 related to Disclosure Of Loans / Guarantees / Comfort Letters / Securities Etc. is Applicable to the entity?\"."]
["ComplianceWithTheConditionsLaidDownForSecretarialAuditorOrThePersonSigningTheSecretarialComplianceReport","Compliance with the conditions laid down for Secretarial Auditor or the person signing the Secretarial Compliance Report","in-capmkt-types:StatusOfCompliance","duration","1) This field is mandatory.\n2) Please select from drop down only."]
["DetailsOfNonComplianceOfComplianceWithTheConditionsLaidDownForSecretarialAuditorOrThePersonSigningTheSecretarialComplianceReport","Details of non compliance of Compliance with the conditions with respect to Secretarial Auditor or the person signing the Secretarial Compliance Report","xbrli:stringItemType","duration","This field is mandatory, If \"No\" selected in \"Compliance status\" field (Column \"H\")."]
["MemorandumOfAssociationAndArticlesOfAssociation","Memorandum of Association and Articles of Association","in-capmkt-types:StatusOfCompliance","duration","1) This field is mandatory.\n2) Please select from drop down only."]
["BriefProfileOfBoardOfDirectorsIncludingDirectorshipAndFullTimePositionsInBodyCorporates","Brief profile of board of directors including directorship and full-time positions in body corporates","in-capmkt-types:StatusOfCompliance","duration","1) This field is mandatory.\n2) Please select from drop down only."]
["EmployeeBenefitSchemeDocumentsFramedInTermsOfSEBIShareBasedEmployeeBenefitsAndSweatEquityRegulations2021","Employee Benefit scheme documents framed in terms of SEBI (SBEB) Regulations, 2021","in-capmkt-types:StatusOfCompliance","duration","1) This field is mandatory.\n2) Please select from drop down only."]
["DetailsOfNonComplianceOfMemorandumOfAssociationAndArticlesOfAssociation","Details of non compliance of Memorandum of Association and Articles of Association","xbrli:stringItemType","duration","This field is mandatory, If \"No\" selected in \"Compliance status\" field (Column \"G\")."]
["DetailsOfNonComplianceOfBriefProfileOfBoardOfDirectorsIncludingDirectorshipAndFullTimePositionsInBodyCorporates","Details of non compliance of Brief profile of board of directors including directorship and full-time positions in body corporates","xbrli:stringItemType","duration","This field is mandatory, If \"No\" selected in \"Compliance status\" field (Column \"G\")."]
["DetailsOfNonComplianceOfEmployeeBenefitSchemeDocumentsFramedInTermsOfSEBIShareBasedEmployeeBenefitsAndSweatEquityRegulations2021","Details of non compliance of Employee Benefit scheme documents framed in terms of SEBI (SBEB) Regulations, 2021","xbrli:stringItemType","duration","This field is mandatory, If \"No\" selected in \"Compliance status\" field (Column \"G\")."]
["DisclosureWebLinkOfMemorandumOfAssociationAndArticlesOfAssociationIsPlaced","Disclosure web link of Memorandum of Association and Articles of Association","xbrli:stringItemType","duration","This field is mandatory, If \"Yes\" selected in \"Compliance status\" field (Column \"G\")."]
["DisclosureWebLinkOfBriefProfileOfBoardOfDirectorsIncludingDirectorshipAndFullTimePositionsInBodyCorporatesIsPlaced","Disclosure web link of Brief profile of board of directors including directorship and full-time positions in body corporates","xbrli:stringItemType","duration","This field is mandatory, If \"Yes\" selected in \"Compliance status\" field (Column \"G\")."]
["DisclosureWebLinkOfEmployeeBenefitSchemeDocumentsFramedInTermsOfSEBIShareBasedEmployeeBenefitsAndSweatEquityRegulations2021IsPlaced","Disclosure web link of Employee Benefit scheme documents framed in terms of SEBI (SBEB) Regulations, 2021","xbrli:stringItemType","duration","This field is mandatory, If \"Yes\" selected in \"Compliance status\" field (Column \"G\")."]
["DateOfEndOfReportingPeriod","Date of Quarter Ending","xbrli:dateItemType","instant","1) This is a mandatory field.\n2) Date must be less than or equal to end date of financial year and greater than start date of financial year in Quarterly Date.\n3) Enter date in \"DD-MM-YYYY\" format.\n4) Enter a valid Date."]
["TypeOfCompany","Type of company","in-capmkt-types:TypeOfCompany","duration","1) This field is mandatory.\n2) Please select from dropdown only."]
["RemarksWebsiteDissemination","Remarks (website dissemination)","xbrli:stringItemType","instant"]
["RemarksForExchangeNotForWebsiteDissemination","Remarks for Exchange (not for Website Dissemination)","xbrli:stringItemType","instant"]
["AnyOtherInformationForDisclosureOfLoansOrGuaranteesOrComfortLettersOrSecuritiesEtcExplanatoryTextBlock","Any Other Information for Disclosure of Loans / Guarantees / Comfort Letters / Securities Etc.","nonnum:textBlockItemType","duration"]

{"sheet":"Annx II - Annual Affirmations","index":11,"n_rows":66,"n_cols":19,"rows_kept":66,"hidden":true,"merged":[[7,4,7,8],[8,4,8,8],[58,4,58,7],[63,4,63,8],[64,5,64,7],[65,5,65,7]]}
[{"$nulls":17},"Yes"]
[{"$nulls":17},"No"]
[{"$nulls":17},"NA"]
[]
[]
[]
[{"$nulls":12},"Chief Financial Officer","CEO","Company Secretary","Company Secretary and Compliance Officer","Compliance Officer","Director","Managing Director"]
[{"$nulls":4},"Annexure II"]
[{"$nulls":4},"II.        Annual Affirmations"]
[{"$nulls":4},"Sr","Particulars","Regulation Number","Compliance status (Yes/No/NA)","If status is “No” details of non-compliance may be given here."]
[{"$nulls":4},1,"Independent director(s) have been appointed in terms of specified criteria of ‘independence’ and/or ‘eligibility’","16(1)(b)",{"$nulls":10},"Independent director(s) have been appointed in terms of specified criteria of ‘independence’ and/or ‘eligibility’","Details of non compliance of independent directors have been appointed in terms of specified criteria of independence and or eligibility"]
[{"$nulls":4},2,"Board composition","17(1), 17(1A) & 17(1C), 17(1D) & 17(1E)",{"$nulls":10},"Board composition","Details of non compliance of board composition"]
[{"$nulls":4},3,"Meeting of Board of directors","17(2)",{"$nulls":10},"Meeting of Board of directors","Details of non compliance of meeting of board of directors"]
[{"$nulls":4},4,"Quorum of Board meeting","17(2A)",{"$nulls":10},"Quorum of Board meeting","Details of non compliance of Quorum of Board meeting"]
[{"$nulls":4},5,"Review of Compliance Reports","17(3)",{"$nulls":10},"Review of Compliance Reports","Details of non compliance of review of compliance reports"]
[{"$nulls":4},6,"Plans for orderly succession for appointments","17(4)",{"$nulls":10},"Plans for orderly succession for appointments","Details of non compliance of plans for orderly succession for appointments"]
[{"$nulls":4},7,"Code of Conduct","17(5)",{"$nulls":10},"Code of Conduct","Details of non compliance of code of conduct"]
[{"$nulls":4},8,"Fees/compensation","17(6)",{"$nulls":10},"Fees/compensation","Details of non compliance of fees or compensation"]
[{"$nulls":4},9,"Minimum Information","17(7)",{"$nulls":10},"Minimum Information","Details of non compliance of minimum information"]
[{"$nulls":4},10,"Compliance Certificate","17(8)",{"$nulls":10},"Compliance Certificate","Details of non compliance of compliance certificate"]
[{"$nulls":4},11,"Risk Assessment & Management","17(9)",{"$nulls":10},"Risk Assessment & Management","Details of non compliance of risk assessment and management"]
[{"$nulls":4},12,"Performance Evaluation of Independent Directors","17(10)",{"$nulls":10},"Performance Evaluation of Independent Directors","Details of non compliance of performance evaluation of independent directors"]
[{"$nulls":4},13,"Recommendation of Board","17(11)",{"$nulls":10},"Recommendation of Board","Details of non compliance of Recommendation of Board"]
[{"$nulls":4},14,"Maximum number of Directorships","17A",{"$nulls":10},"Maximum number of Directorships","Details of non compliance of Maximum number of Directorships"]
[{"$nulls":4},15,"Composition of Audit Committee","18(1)",{"$nulls":10},"Composition of Audit Committee","Details of non compliance of composition of audit committee"]
[{"$nulls":4},16,"Meeting of Audit Committee","18(2)",{"$nulls":10},"Meeting of Audit Committee","Details of non compliance of meeting of audit committee"]
[{"$nulls":4},17,"Role of Audit Committee and information to be reviewed by the audit committee","18(3)",{"$nulls":10},"Role of Audit Committee and information to be reviewed by the audit committee","Details of non compliance of Role of Audit Committee and information to be reviewed by the audit committee"]
[{"$nulls":4},18,"Composition of nomination & remuneration committee","19(1) & (2)",{"$nulls":10},"Composition of nomination & remuneration committee","Details of non compliance of composition of nomination and remuneration committee"]
[{"$nulls":4},19,"Quorum of Nomination and Remuneration Committee meeting","19(2A)",{"$nulls":10},"Quorum of Nomination and Remuneration Committee meeting","Details of non compliance of Quorum of Nomination and Remuneration Committee meeting"]
[{"$nulls":4},20,"Meeting of Nomination and Remuneration Committee","19(3A)",{"$nulls":10},"Meeting of Nomination and Remuneration Committee","Details of non compliance of Meeting of Nomination and Remuneration Committee"]
[{"$nulls":4},21,"Role of Nomination and Remuneration Committee","19(4)",{"$nulls":10},"Role of Nomination and Remuneration Committee","Details of non compliance of Role of Nomination and Remuneration Committee"]
[{"$nulls":4},22,"Composition of Stakeholder Relationship Committee","20(1), 20(2) & 20(2A)",{"$nulls":10},"Composition of Stakeholder Relationship Committee","Details of non compliance of Composition of Stakeholder Relationship Committee"]
[{"$nulls":4},23,"Meeting of Stakeholders Relationship Committee","20(3A)",{"$nulls":10},"Meeting of Stakeholders Relationship Committee","Details of non compliance of Meeting of Stakeholders Relationship Committee"]
[{"$nulls":4},24,"Role of Stakeholders Relationship Committee","20(4)",{"$nulls":10},"Role of Stakeholders Relationship Committee","Details of non compliance of Role of Stakeholders Relationship Committee"]
[{"$nulls":4},25,"Composition and role of risk management committee","21(1),(2),(3),(4)",{"$nulls":10},"Composition and role of risk management committee","Details of non compliance of composition and role of risk management committee"]
[{"$nulls":4},26,"Meeting of Risk Management Committee","21(3A)",{"$nulls":10},"Meeting of Risk Management Committee","Details of non compliance of Meeting of Risk Management Committee"]
[{"$nulls":4},27,"Quorum of Risk Management Committee meeting","21(3B)",{"$nulls":10},"Quorum of Risk Management Committee meeting","Details of non compliance of Quorum of Risk Management Committee meeting"]
[{"$nulls":4},28,"Gap between the meetings of the Risk Management Committee","21(3C)",{"$nulls":10},"Gap between the meetings of the Risk Management Committee","Details of non compliance of Gap between the meetings of the Risk Management Committee"]
[{"$nulls":4},29,"Vigil Mechanism",22,{"$nulls":10},"Vigil Mechanism","Details of non compliance of Vigil Mechanism"]
[{"$nulls":4},30,"Policy for related party Transaction","23(1), (1A), (5), (6), & (8)",{"$nulls":10},"Policy for related party Transaction","Details of non compliance of Policy for related party Transaction"]
[{"$nulls":4},31,"Prior or Omnibus approval of Audit Committee for all related party transactions","23(2), (3)",{"$nulls":10},"Prior or Omnibus approval of Audit Committee for all related party transactions","Details of non compliance of Prior or Omnibus approval of Audit Committee for all related party transactions"]
[{"$nulls":4},32,"Approval for material related party transactions","23(4)",{"$nulls":10},"Approval for material related party transactions","Details of non compliance of approval for material related party transactions"]
[{"$nulls":4},33,"Disclosure of related party transactions on consolidated basis","23(9)",{"$nulls":10},"Disclosure of related party transactions on consolidated basis","Details of non compliance of Disclosure of related party transactions on consolidated basis"]
[{"$nulls":4},34,"Composition of Board of Directors of unlisted material Subsidiary","24(1)",{"$nulls":10},"Composition of Board of Directors of unlisted material Subsidiary","Details of non compliance of Composition of Board of Directors of unlisted material Subsidiary"]
[{"$nulls":4},35,"Other Corporate Governance requirements with respect to subsidiary of listed entity","24(2),(3),(4),(5) & (6)",{"$nulls":10},"Other Corporate Governance requirements with respect to subsidiary of listed entity","Details of non compliance of Other Corporate Governance requirements with respect to subsidiary of listed entity"]
[{"$nulls":4},36,"Alternate Director to Independent Director","25(1)",{"$nulls":10},"Alternate Director to Independent Director","Details of non compliance of Alternate Director to Independent Director"]
[{"$nulls":4},37,"Maximum  Tenure","25(2)",{"$nulls":10},"Maximum  Tenure","Details of non compliance of Maximum  Tenure"]
[{"$nulls":4},38,"Appointment, Re-appointment or removal of an Independent Director through special resolution or the alternate mechanism","25(2A)",{"$nulls":10},"Appointment, Re-appointment or removal of an Independent Director through special resolution or the alternate mechanism","Details of non compliance of Appointment, Re-appointment or removal of an Independent Director through special resolution or the alternate mechanism"]
[{"$nulls":4},39,"Meeting of independent directors","25(3) & (4)",{"$nulls":10},"Meeting of independent directors","Details of non compliance of meeting of independent directors"]
[{"$nulls":4},40,"Familiarization of independent directors","25(7)",{"$nulls":10},"Familiarization of independent directors","Details of non compliance of familiarization of independent directors"]
[{"$nulls":4},41,"Declaration from Independent Director","25(8) & (9)",{"$nulls":10},"Declaration from Independent Director","Details of non compliance of Declaration from Independent Director"]
[{"$nulls":4},42,"Directors and Officers insurance","25(10)",{"$nulls":10},"Directors and Officers insurance","Details of non compliance of Directors and Officers insurance"]
[{"$nulls":4},43,"Confirmation with respect to appointment of Independent Directors who resigned from the listed entity","25(11)",{"$nulls":10},"Confirmation with respect to appointment of Independent Directors who resigned from the listed entity","Details of non compliance of Confirmation with respect to appointment of Independent Directors who resigned from the listed entity"]
[{"$nulls":4},44,"Memberships in Committees","26(1)",{"$nulls":10},"Memberships in Committees","Details of non compliance of Memberships in Committees"]
[{"$nulls":4},45,"Affirmation with compliance to code of conduct from members of Board of Directors and Senior management personnel","26(3)",{"$nulls":10},"Affirmation with compliance to code of conduct from members of Board of Directors and Senior management personnel","Details of non compliance of Affirmation with compliance to code of conduct from members of Board of Directors and Senior management personnel"]
[{"$nulls":4},46,"Policy with respect to Obligations of directors and senior management","26(2) & 26(5)",{"$nulls":10},"Policy with respect to Obligations of directors and senior management","Details of non compliance of Policy with respect to Obligations of directors and senior management"]
[{"$nulls":4},47,"Approval of the Board and shareholders for compensation or profit sharing in connection with dealings in the securities of the listed entity","26(6)",{"$nulls":10},"Approval of the Board and shareholders for compensation or profit sharing in connection with dealings in the securities of the listed entity","Details of non compliance of Approval of the Board and shareholders for compensation or profit sharing in connection with dealings in the securities of the listed entity"]
[{"$nulls":4},48,"Vacancies in respect Key Managerial Personnel","26A(1) & 26A(2), 26A(3)",{"$nulls":10},"Vacancies in respect Key Managerial Personnel","Details of non compliance of Vacancies in respect Key Managerial Personnel"]
[{"$nulls":4},"Any other information to be provided",{"$nulls":12},"Disclosure notes on annual affirmations"]
[]
[]
[]
[]
[{"$nulls":4},"Annexure II"]
[{"$nulls":4},1,"Name of signatory",{"$nulls":11},"Name of signatory for annual affirmations"]
[{"$nulls":4},2,"Designation",{"$nulls":11},"Designation of person for annual affirmations"]

{"sheet":"Annx II - Annual Aff. (contd)","index":12,"n_rows":19,"n_cols":26,"rows_kept":19,"hidden":true,"merged":[[7,4,7,6],[8,4,8,6],[11,4,11,5],[16,4,16,6]]}
[{"$nulls":17},"Yes",{"$nulls":7},"Non - Executive Director"]
[{"$nulls":17},"No",{"$nulls":7},"Executive Director"]
[{"$nulls":17},"NA",{"$nulls":7},"Non - Independent  Director"]
[{"$nulls":25},"Independent Director"]
[{"$nulls":25},"Promoter Director"]
[{"$nulls":25},"Nominee Director"]
[{"$nulls":9},"Chief Financial Officer","CEO","Company Secretary","Company Secretary and Compliance Officer","Compliance Officer","Director","Managing Director",{"$nulls":9},"Chairperson"]
[{"$nulls":4},"Annexure II",{"$nulls":20},"Woman Director"]
[{"$nulls":4},"III.        Affirmations",{"$nulls":20},"CFO "]
[{"$nulls":4},"Sr","Particulars","Compliance status (Yes/No/NA)",{"$nulls":18},"CEO"]
[{"$nulls":4},1,"The Listed Entity has approved Material Subsidiary Policy and the Corporate Governance requirements with respect to subsidiary of Listed Entity have been complied",{"$nulls":11},"The listed entity has approved material subsidiary policy and the corporate governance requirements with respect to subsidiary of listed entity have been complied",{"$nulls":7},"Managing Director"]
[{"$nulls":4},"Any other information to be provided",{"$nulls":12},"Disclosure notes on affirmations",{"$nulls":7},"Whole Time Director"]
[{"$nulls":25},"Manager"]
[]
[]
[]
[{"$nulls":4},"Annexure II"]
[{"$nulls":4},1,"Name of signatory",{"$nulls":11},"Name of signatory affirmations"]
[{"$nulls":4},2,"Designation",{"$nulls":11},"Designation of person affirmations"]

{"sheet":"Half yearly Affirmations","index":13,"n_rows":26,"n_cols":19,"rows_kept":26,"hidden":true,"merged":[[7,4,7,8],[8,4,8,8],[18,4,18,7],[23,4,23,8],[24,5,24,7],[25,5,25,7]]}
[{"$nulls":17},"Yes"]
[{"$nulls":17},"No"]
[{"$nulls":17},"NA"]
[]
[]
[]
[{"$nulls":12},"Chief Financial Officer","CEO","Company Secretary","Company Secretary and Compliance Officer","Compliance Officer","Director","Managing Director"]
[{"$nulls":4},"Affirmations on Compliance Requirements for AGM (applicable only for the first half-year filing i.e., 2nd quarter)"]
[{"$nulls":4},"I.        Affirmations"]
[{"$nulls":4},"Sr","Particulars","Regulation Number","Compliance status (Yes/No/NA)","If status is “No” details of non-compliance may be given here."]
[{"$nulls":4},1,"Copy of the annual report including balance sheet, profit and loss account, directors report, corporate governance report, BRSR & BRSR core, if applicable, displayed on website","46(2)",{"$nulls":10},"Copy of the annual report including balance sheet, profit and loss account, directors report, corporate governance report, BRSR & BRSR core, if applicable, displayed on website","Details of non compliance of copy of the annual report including balance sheet, profit and loss account, directors report, corporate governance report, business responsibility report displayed on website"]
[{"$nulls":4},2,"Presence of Chairperson of Audit Committee at the Annual General Meeting","18(1)(d)",{"$nulls":10},"Presence of Chairperson of Audit Committee at the Annual General Meeting","Details of non compliance of presence of chairperson of audit committee at the annual general meeting"]
[{"$nulls":4},3,"Presence of Chairperson of the nomination and remuneration committee at the annual general meeting","19(3)",{"$nulls":10},"Presence of Chairperson of the nomination and remuneration committee at the annual general meeting","Details of non compliance of presence of chairperson of the nomination and remuneration committee at the annual general meeting"]
[{"$nulls":4},4,"Presence of Chairperson of the Stakeholder Relationship committee at the annual general meeting","20(3) ",{"$nulls":10},"Presence of Chairperson of the Stakeholder Relationship committee at the annual general meeting","Details of non compliance of Presence of Chairperson of the Stakeholder Relationship committee at the annual general meeting"]
[{"$nulls":4},5,"Disclosure of the Secretarial Audit Report of the listed entity and the material subsidiaries in the Annual Report","24A(1)",{"$nulls":10},"Disclosure of the Secretarial Audit Report of the listed entity and the material subsidiaries in the Annual Report","Details of non compliance of Disclosure of the Secretarial Audit Report of the listed entity and the material subsidiaries in the Annual ReportPresence of Chairperson of the Stakeholder Relationship committee at the annual general meeting"]
[{"$nulls":4},6,"Compliance with the conditions laid down for Secretarial Auditor or the person signing the Secretarial Compliance Report","24A(1A), 24A(1B), 24A(1C)",{"$nulls":10},"Compliance with the conditions laid down for Secretarial Auditor or the person signing the Secretarial Compliance Report","Details of non compliance of Compliance with the conditions with respect to Secretarial Auditor or the person signing the Secretarial Compliance Report"]
[{"$nulls":4},7,"Submission of Annual Secretarial Compliance Report","24A(2)",{"$nulls":10},"Submission of Annual Secretarial Compliance Report","Details of non compliance of Submission of Annual Secretarial Compliance Report"]
[{"$nulls":4},8,"Whether “Corporate Governance Report” disclosed in Annual Report","34(3) read with para C of Schedule V",{"$nulls":10},"Whether “Corporate Governance Report” disclosed in Annual Report","Details of non compliance of corporate governance report disclosed in annual report"]
[{"$nulls":4},"Any other information to be provided",{"$nulls":12},"Disclosure notes on annual formats for compliance report on corporate governance"]
[]
[]
[]
[]
[{"$nulls":4},"Annexure III"]
[{"$nulls":4},1,"Name of signatory",{"$nulls":11},"Name of signatory for half yearly affirmations"]
[{"$nulls":4},2,"Designation",{"$nulls":11},"Designation of person for half yearly affirmations"]

{"sheet":"Additional Half Yearly Disc","index":14,"n_rows":40,"n_cols":16,"rows_kept":40,"hidden":true,"merged":[[8,4,8,7],[9,4,9,6],[11,4,11,6],[17,4,17,7],[23,4,23,7],[29,4,29,6],[30,4,30,7],[31,4,31,5],[32,4,32,5],[39,4,39,7]]}
[{"$nulls":13},"Yes","Applicable","CEO"]
[{"$nulls":13},"No","Not Applicable","CFO"]
[]
[]
[]
[]
[]
[]
[{"$nulls":4},"Additional Half yearly Disclosure\nDISCLOSURE OF LOANS / GUARANTEES / COMFORT LETTERS / SECURITIES ETC. (applicable only for half-yearly filings)"]
[{"$nulls":4},"Any Other Information for Disclosure of Loans / Guarantees / Comfort Letters / Securities Etc."]
[{"$nulls":4},"I. Disclosure of Loans/ guarantees/comfort letters /securities etc. Refer note below",null,"The Figure should be mentioned in Actual INR only"]
[{"$nulls":4},"(A)Any loan or any other form of debt advanced by the listed entity directly or indirectly to"]
[{"$nulls":4},"Entity","Aggregate amount advanced during six months","Balance outstanding at the end of six months"]
[null,"Promoter or any other entity controlled by them","Balance outstanding at the end of six months any loan or any other form of debt to promoter or any other entity controlled by them",null,"Promoter or any other entity controlled by them"]
[null,"Promoter Group or any other entity controlled by them","Balance outstanding at the end of six months any loan or any other form of debt to promoter group or any other entity controlled by them",null,"Promoter Group or any other entity controlled by them"]
[null,"Directors (including relatives) or any other entity controlled by them","Balance outstanding at the end of six months any loan or any other form of debt to directors including relatives or any other entity controlled by them",null,"Directors (including relatives) or any other entity controlled by them"]
[null,"KMPs  or  any  other  entity controlled by them","Balance outstanding at the end of six months any loan or any other form of debt to kmps  or  any  other  entity controlled by them",null,"KMPs  or  any  other  entity controlled by them"]
[{"$nulls":4},"(B) Any guarantee / comfort letter (by whatever name called) provided by the listed entity directly or indirectly, in connection with any loan(s) or any other form of debt availed By"]
[{"$nulls":4},"Entity","Type (guarantee, comfort letter etc.)","Aggregate amount of issuance during six months","Balance  outstanding  at the end of six months(taking into account any invocation)"]
["Type of any guarantee or comfort letter of promoter or any other entity controlled by them","Aggregate amount of issuance during six months of any guarantee or comfort to promoter or any other entity controlled by them","Balance outstanding  at the end of six months of any guarantee or comfort to promoter or any other entity controlled by them",null,"Promoter  or  any other entity controlled by them"]
["Type of any guarantee or comfort letter of promoter group or any other entity controlled by them","Aggregate amount of issuance during six months of any guarantee or comfort to promoter group or any other entity controlled by them","Balance outstanding  at the end of six months of any guarantee or comfort to promoter group or any other entity controlled by them",null,"Promoter Group or any   other   entity controlled by them"]
["Type of any guarantee or comfort letter of directors including relatives or any other entity controlled by them","Aggregate amount of issuance during six months of any guarantee or comfort to directors including relatives or any other entity controlled by them","Balance outstanding  at the end of six months of any guarantee or comfort to directors including relatives or any other entity controlled by them",null,"Directors  (including relatives)  or  any other entity controlled by them"]
["Type of any guarantee or comfort letter of kmps  or  any  other  entity controlled by them","Aggregate amount of issuance during six months of any guarantee or comfort to kmps or  any  other  entity controlled by them","Balance outstanding  at the end of six months of any guarantee or comfort to kmps or  any  other  entity controlled by them",null,"KMPs or any other entity controlled by them"]
[{"$nulls":4},"(C) Any security provided by the listed entity directly or indirectly, in connection with any loan(s) or any other form of debt availed by"]
[{"$nulls":4},"Entity","Type  of  security (cash, shares etc.)","Aggregate value of security provided during six months","Balance outstanding at the end of six months"]
["Type of security of promoter or any other entity controlled by them","Aggregate value of security provided during six months of security in connection with loan or any other debt avail by promoter  or  any other entity controlled by them","Balance outstanding at the end of six months of security in connection with loan or any other debt avail by promoter  or  any other entity controlled by them",null,"Promoter  or  any other entity controlled by them"]
["Type of security of promoter group or any other entity controlled by them","Aggregate value of security provided during six months of security in connection with loan or any other debt avail by promoter group or any   other   entity controlled by them","Balance outstanding at the end of six months of security in connection with loan or any other debt avail by promoter group or any   other   entity controlled by them",null,"Promoter Group or any   other   entity controlled by them"]
["TypeOfSecurityOfDirectorsIncludingRelativesOrAnyOtherEntityControlledByThem","Aggregate value of security provided during six months of security in connection with loan or any other debt avail by directors including relatives or any other entity controlled by them","Balance outstanding at the end of six months of security in connection with loan or any other debt avail by directors including relatives or any other entity controlled by them",null,"Directors  (including relatives)  or  any other entity controlled by them "]
["Type of security of kmps  or  any  other  entity controlled by them","Aggregate value of security provided during six months of security in connection with loan or any other debt avail by kmps or any other entity controlled by them","Balance outstanding at the end of six months of security in connection with loan or any other debt avail by kmps or any other entity controlled by them",null,"KMPs or any other entity controlled by them"]
[{"$nulls":4},"(D) Additional Information"]
[{"$nulls":4},"II. Affirmations"]
[{"$nulls":4},"Affirmations",null,"Compliance Status","Company Remarks"]
[null,null,"Compliance status",null,"All loans (or other form of debt), guarantees, comfort letters (by whatever name called) or securities in connection with any loan(s) (or other form of debt) given directly or indirectly by the listed entity to promoter(s), promoter group, director(s) (including their relatives), key managerial personnel (including their relatives) or any entity controlled by them are in the economic interest of the company."]
[null,null,"Additional disclosure name of signatory",null,"Name "]
[null,null,"Additional disclosure designation",null,"Designation "]
[null,null,"Additional disclosure place",null,"Place "]
[null,null,"Additional disclosure date",null,"Date"]
[]
[]
[{"$nulls":4},"Notes:\n1. These disclosures shall exclude any loan (or other form of debt), guarantee / comfort letter (by whatever name called) or security provided in connection with any loan or any other form of debt;\n  a) by a government company to/ for the Government or government company\n  b) by the listed entity to/for its subsidiary [and joint-venture company] whose accounts are consolidated with the listed entity.\n  c) by a banking company or an insurance company; and\n  d) by the listed entity to its employees or directors as a part of the service conditions\n2. If the Listed Entity would like to provide any other information, the same may be indicated as Para D in the above table"]

{"sheet":"Signatory Details","index":15,"n_rows":12,"n_cols":24,"rows_kept":12,"merged":[[7,4,7,5]]}
[{"$nulls":17},"Chief Financial Officer","CEO","Company Secretary","Company Secretary and Compliance Officer","Compliance Officer","Director","Managing Director"]
[]
[]
[]
[]
[]
[]
[{"$nulls":4},"Signatory Details"]
[{"$nulls":4},"Name of signatory","R.K.AWASTHI"]
[{"$nulls":4},"Designation of person","Company Secretary and Compliance Officer"]
[{"$nulls":4},"Place","KANPUR"]
[{"$nulls":4},"Date","09-07-2025"]

{"sheet":"Investor Grievance Report","index":16,"n_rows":12,"n_cols":14,"rows_kept":12,"merged":[[7,3,7,4]]}
{"$rows_empty":7}
[{"$nulls":3},"Investor Grievance Details"]
[{"$nulls":3},"No. of investor complaints pending at the beginning of Quarter",0,{"$nulls":8},"NoOfInvestorComplaints"]
[{"$nulls":3},"No. of investor complaints received during the Quarter",4,{"$nulls":8},"NoOfInvestorComplaintsReceivedDuringThePeriod"]
[{"$nulls":3},"No. of investor complaints disposed off during the Quarter",4,{"$nulls":8},"NoOfInvestorComplaintsDisposedOffDuringThePeriod"]
[{"$nulls":3},"No. of investor complaints those remaining unresolved at the end of the Quarter",{"$f":"E9+E10-E11","v":0},{"$nulls":8},"NoOfInvestorComplaints"]

{"sheet":"Acquisition of Shares or Voting","index":17,"n_rows":13,"n_cols":16,"rows_kept":13,"merged":[[7,3,7,8],[8,3,8,7],[11,3,11,4]]}
[{"$nulls":8},1,{"$nulls":6},"Yes"]
[{"$nulls":4},"NameOfTheUnlistedCompanyInWhichSharesOrVotingRightsHaveBeenAcquired","DateOfAcquisition","PercentageOfAggregateHoldingOfSharesOrVotingRights","PercentageOfSharesOrVotingRightsAcquiredDuringTheQuarter","PercentageOfAggregateHoldingOfSharesOrVotingRights",{"$nulls":6},"No"]
[]
[]
[]
[]
[]
[{"$nulls":3},"Disclosure of Acquisition of Shares or Voting Rights in Unlisted Companies-\nThe details of acquisition of shares or voting rights in unlisted companies during the quarter in terms of sub-para 1 of para A of Part A of Schedule III are given below:"]
[{"$nulls":3},"Any Other Information for Disclosure of Acquisition of Shares or Voting Rights in Unlisted Companies",{"$nulls":9},"AnyOtherInformationForDisclosureOfAcquisitionOfSharesOrVotingRightsInUnlistedCompaniesExplanatoryTextBlock"]
[{"$nulls":3},"Sr. No.","Name of the unlisted company in which shares or voting rights have been acquired","Date of acquisition","Aggregate holding (% shares or voting rights) as at the end of the previous quarter","% shares or voting rights acquired during the quarter","Aggregate holding (% shares or voting rights) as at the end of the quarter"]
[{"$nulls":8},{"$f":"IF(COUNT(G11:H11)>=1,SUM(G11:H11),\"\")","v":""}]
[]
[{"$nulls":3},1,"NO","30-06-2025",{"v":0,"d":"0.00%"},{"v":0,"d":"0.00%"},{"$f":"IF(COUNT(G13:H13)>=1,SUM(G13:H13),\"\")","v":{"v":0,"d":"0.00%"}}]

{"sheet":"Imposition of Fine or Penalty","index":18,"n_rows":13,"n_cols":16,"rows_kept":13,"merged":[[7,3,7,8],[8,3,8,7],[11,3,11,4]]}
[{"$nulls":8},1,{"$nulls":6},"Yes"]
[{"$nulls":4},"NameOfTheAuthority","NatureAndDetailsOfTheActionTakenOrOrderPassed","DateOfReceiptOfDirectionOrOrderIncludingAnyAdInterimOrInterimOrdersOrAnyOtherCommunicationFromTheAuthority","DetailsOfTheViolationOrContraventionCommittedOrAllegedToBeCommitted","ImpactOnFinancialOrOperationOrOtherActivitiesOfTheListedEntityQuantifiableInMonetaryTermsToTheExtentPossible",{"$nulls":6},"No"]
[]
[]
[]
[]
[]
[{"$nulls":3},"Disclosure of Imposition of Fine or Penalty\nThe details of imposition of fine or penalty during the quarter in terms of sub-para 20 of para A of Part A of Schedule III are given below:"]
[{"$nulls":3},"Any Other Information for Disclosure of Imposition of Fine or Penalty",{"$nulls":9},"AnyOtherInformationForDisclosureOfImpositionOfFineOrPenaltyExplanatoryTextBlock"]
[{"$nulls":3},"Sr. No.","Name of the authority","Nature and details of the action(s) taken or order(s) passed","Date of receipt of direction or order, including any ad interim or interim orders, or any other communication from the authority","Details of the violation(s)/ contravention(s) committed or alleged to be committed","Impact on financial, operation or other activities of the listed entity, quantifiable in monetary terms to the extent possible"]
[]
[]
[{"$nulls":3},1,"NO",0,"30-06-2025",0,0]

{"sheet":"Ongoing TaxLitigations_Disputes","index":19,"n_rows":13,"n_cols":15,"rows_kept":13,"merged":[[7,3,7,7],[8,3,8,6],[11,3,11,4]]}
[{"$nulls":7},0,1,{"$nulls":5},"Yes"]
[{"$nulls":4},"NameOfTheOpposingParty","DateOfInitiationOfTheLitigationDispute","StatusOfTheLitigationDisputeAsPerLastDisclosure","CurrentStatusOfTheLitigationOrDispute",{"$nulls":6},"No"]
[]
[]
[]
[]
[]
[{"$nulls":3},"Disclosure of Updates to Ongoing Tax Litigations or Disputes\nThe updates on tax litigations or disputes in terms of sub-para 8 of para B of Part A of Schedule III read with corresponding provisions of Annexure 18 of the Master Circular are given below:"]
[{"$nulls":3},"Any Other Information for Disclosure of Updates to Ongoing Tax Litigations or Disputes",{"$nulls":9},"AnyOtherInformationForDisclosureOfUpdatesToOngoingTaxLitigationsOrDisputesExplanatoryTextBlock"]
[{"$nulls":3},"Sr. No.","Name of the opposing party","Date of initiation of the litigation / dispute","Status of the litigation / dispute as per last disclosure","Current status of the litigation / dispute"]
[]
[]
[{"$nulls":3},1,0,"30-06-2025","0",{"v":0,"d":"0.00%"}]